{"text_format":"1","workbook":"xlsx","n_sheets":3,"sheets":["Instructions","Input","Input_Commuter"],"not_rendered":{"charts":0,"images":2,"macros":1,"external_links":1,"defined_names":187,"comments":2,"pivot_tables":0},"unopened":[],"bounds":{"document_bytes":16777216,"sheet_cells":100000,"rows_first":2000,"rows_last":500,"rows_between":2000,"halvings":0,"cell_chars":16384,"cell_head_chars":4096},"cells_cut":0,"cells_raw":0,"read":"whole","date_system":"1900"}

{"sheet":"Instructions","index":0,"n_rows":40,"n_cols":2,"rows_kept":40,"cut":false,"hidden":false,"merged":[[18,1,18,11],[37,1,38,11],[34,1,34,11],[39,1,40,11]]}
[]
[]
[]
[]
[]
[]
[]
[]
[]
[]
[]
[]
[]
[]
[]
[]
[]
[]
[null,"v9"]
[]
[]
[]
[]
[]
[]
[]
[]
[]
[]
[]
[]
[]
[]
[null,"How and where do I enter data?"]
[null,"Start by entering data into the Inputs Module. These worksheets are color-coded green. Most data entry will occur on the main \"Input\" worksheet, but there is another  input worksheet for the commuter data:"]
[null,"• \"Input_Commuter\" used ONLY to measuring emissions from faculty, staff, or student commuting"]
[null,"What next?"]
[null,"Enter all your data for the year, then go to https://unhsimap.org/cmap/import and follow instruction on that page. "]
[]
[null,"NOTE: all the calculations will take place in SIMAP, after your data has been added. "]

{"sheet":"Input","index":1,"n_rows":71,"n_cols":124,"rows_kept":71,"cut":false,"hidden":false,"merged":[[5,75,5,77],[6,75,6,77],[6,95,7,95],[7,88,7,89],[7,90,7,94],[5,78,5,114],[6,110,6,114],[5,115,5,123],[7,115,7,119],[7,120,7,123],[7,101,7,102],[6,101,6,105],[6,106,6,109],[7,103,7,105],[7,107,7,109],[7,2,8,2],[7,3,7,5],[7,6,7,10],[7,11,7,12],[5,13,5,74],[6,96,7,100],[6,57,6,62],[7,57,7,62],[7,63,7,66],[6,3,6,12],[7,13,7,31],[6,13,6,46],[7,32,7,46],[6,47,6,55],[7,47,7,55],[7,67,7,74],[6,63,6,74],[6,88,6,94],[7,83,7,87],[7,78,7,82],[6,78,6,87]]}
[]
[null,null,"On this Worksheet: Enter data related to emissions.  If a column does not apply or the data is unavailable, leave it blank."]
[null,null,"MODULE","Input"]
[null,null,"WORKSHEET","Input: Enter emissions source activity and institutional data"]
[null,null,"UNIVERSITY"]
[null,null,null,null,null,null,null,null,null,null,null,null,null,"--- Scope 1 Emissions Sources ---",null,null,null,null,null,null,null,null,null,null,null,null,null,null,null,null,null,null,null,null,null,null,null,null,null,null,null,null,null,null,null,null,null,null,null,null,null,null,null,null,null,null,null,null,null,null,null,null,null,null,null,null,null,null,null,null,null,null,null,null,null,"--- Scope 2 Emissions Sources ---",null,null,"--- Scope 3 Emissions Sources ---",null,null,null,null,null,null,null,null,null,null,null,null,null,null,null,null,null,null,null,null,null,null,null,null,null,null,null,null,null,null,null,null,null,null,null,null,"--- Offsets ---"]
[null,null,null,"Institutional Data",null,null,null,null,null,null,null,null,null,"On-Campus Stationary Sources",null,null,null,null,null,null,null,null,null,null,null,null,null,null,null,null,null,null,null,null,null,null,null,null,null,null,null,null,null,null,null,null,null,"Direct Transportation Sources",null,null,null,null,null,null,null,null," ","Refrigerants & Chemicals",null,null,null,null,null,"Agriculture Sources",null,null,null,null,null,null,null,null,null,null,null,"Purchased Electricity, Steam, and Chilled Water",null,null,"Commuting - click here to enter data",null,null,null,null,null,null,null,null,null,"Directly Financed Outsourced Travel",null,null,null,null,null,null,"Study Abroad Travel","Student Travel to/from Home (OPTIONAL)",null,null,null,null,"Solid Waste",null,null,null,null,"Wastewater",null,null,null,"Paper",null,null,null,null," "]
[null,null,"Fiscal Year","Budget",null,null,"Population",null,null,null,null,"Physical Size",null,"On-Campus Cogeneration Plant(s)",null,null,null,null,null,null,null,null,null,null,null,null,null,null,null,null,null,null,"Other On-Campus Stationary Sources",null,null,null,null,null,null,null,null,null,null,null,null,null,null,"University Fleet",null,null,null,null,null,null,null,null," ","Refrigerants & Chemicals",null,null,null,null,null,"Fertilizer Application",null,null,null,"Animal Husbandry",null,null,null,null,null,null,null,"Electricity","Steam","Chilled Water","Faculty / Staff Commuting",null,null,null,null,"Student Commuting",null,null,null,null,"Air Travel",null,"Other",null,null,null,null,null,null,null,null,null,null,"Incinerated Waste (not used for on-campus power)",null,"Landfilled Waste",null,null,"Septic System","Central Treatment System",null,null,"Uncoated Freesheet","Uncoated Freesheet","Uncoated Freesheet","Uncoated Freesheet","Uncoated Freesheet","Offsets ",null,null,null,null,"Renewable Energy Certificates (RECs) are now entered  in Scope 2 to align with new methodology"]
[null,null,null,"Operating Budget","Research Budget","Energy Budget","Full Time Students","Part-Time Students","Summer School Students","Faculty","Staff","Total Building Space","Total Research Building Space","Residual Oil (#5-6)","Distillate Oil (#1-4)","Natural Gas","LPG (Propane)","Coal (Steam Coal)","Incinerated Waste","Wood Chips","Wood Pellets","Grass Pellets","Residual BioHeat","Distillate BioHeat","Attributable Solar - Electric","Attributable Solar - Thermal","Attributable Wind","Other","Electric Output","Steam Output","Electric Efficiency","Steam Efficiency","Residual Oil (#5-6)","Distillate Oil (#1-4)","Natural Gas","LPG (Propane)","Coal (Steam Coal)","Incinerated Waste","Wood Chips","Wood Pellets","Grass Pellets","Residual BioHeat","Distillate BioHeat","Attributable Solar - Electric","Attributable Solar - Thermal","Attributable Wind","Other","Gasoline Fleet","Diesel Fleet","Natural Gas Fleet","E85 Fleet","B5 Fleet","B20 Fleet","B100","Hydrogen","Other","Electric Fleet","HFC-134a","R-404a","HCFC-22","HCFE-235da2","HG-10","Other","Synthetic","% Nitrogen","Organic","% Nitrogen","Dairy Cows","Beef Cows","Swine","Goats","Sheep","Horses","Poultry","Other","SET eGRID SUBREGION in SIMAP","SET FUEL MIX in SIMAP","SET FUEL MIX in SIMAP","Carbon-free Modes","Automobile","Bus","Light Rail","Commuter Rail","Carbon-free Modes","Automobile","Bus","Light Rail","Commuter Rail","Faculty / Staff","Students","Train","Taxi / Ferry / Rental Car","Bus","Alternative Fuel Bus","Personal Mileage Reimbursement","Air","Automobile","Carpool","Bus","Train","Air","Mass Burn","Refuse Derived Fuel (RDF)","No CH4 Recovery","CH4 Recovery and Flaring","CH4 Recovery and Electric Generation",null,"Aerobic","Anaerobic","Anaerobic Digestion",0,0.25,0.5,0.75,1,"On-campus Composting","Forest Preservation","Retail Offsets (High End)","Retail Offsets (Low End)","Other","Green Power Certificates","Retail Offsets (High End)","Retail Offsets (Low End)","Other"]
[null,null,"UNITS","$","$","$","#","#","#","#","#","Square feet","Square feet","Gallons","Gallons","MMBtu","Gallons","Short Tons","Short Tons","Short Tons","Short Tons","Short Tons","Gallons","Gallons","kWh","MMBtu","kWh","MMBtu","kWh","MMBtu","%","%","Gallons","Gallons","MMBtu","Gallons","Short Tons","Short Tons","Short Tons","Short Tons","Short Tons","Gallons","Gallons","kWh","MMBtu","kWh","MMBtu","Gallons","Gallons","MMBtu","Gallons ","Gallons ","Gallons ","Gallons ","MMBtu ","MMBtu ","kWh","Pounds ","Pounds ","Pounds ","Pounds ","Pounds ","Pounds ","Pounds","%","Pounds","%","#","#","#","#","#","#","#","#","kWh                       ","MMBtu","MMBtu","Miles","Miles","Passenger Miles","Passenger Miles","Passenger Miles","Miles","Miles","Passenger Miles","Passenger Miles","Passenger Miles","Miles","Miles","Passenger Miles","Miles","Passenger Miles","Passenger Miles","Miles","Passenger Miles","Miles","Miles","Passenger Miles","Passenger Miles","Passenger Miles","Short Tons","Short Tons","Short Tons","Short Tons","Short Tons","Gallons","Gallons","Gallons","Gallons","lbs","lbs","lbs","lbs","lbs","Short Tons of Wet Organic Compost ","MT eCO2","MT eCO2","MT eCO2","MT eCO2"]
[null,null,1990,null,null,null,null,null,null,null,null,null,null,null,null,null,null,null,null,null,null,null,null,null,null,null,null,null,null,null,null,null,null,null,null,null,null,null,null,null,null,null,null,null,null,null,null,null,null,null,null,null,null,null,null,null,null,null,null,null,null,null,null,null,null,null,null,null,null,null,null,null,null,null,null,null,null,null,{"$f":"Input_Commuter!BL11+Input_Commuter!BN11+Input_Commuter!CW11+Input_Commuter!CY11","v":0},{"$f":"Input_Commuter!BP11+Input_Commuter!DA11","v":0},{"$f":"Input_Commuter!BR11+Input_Commuter!DC11","v":0},{"$f":"Input_Commuter!BT11+Input_Commuter!DE11","v":0},{"$f":"Input_Commuter!BV11+Input_Commuter!DG11","v":0},{"$f":"Input_Commuter!AA11+Input_Commuter!AC11","v":0},{"$f":"Input_Commuter!AE11","v":0},{"$f":"Input_Commuter!AG11","v":0},{"$f":"Input_Commuter!AI11","v":0},{"$f":"Input_Commuter!AK11","v":0}]
[null,null,1991,null,null,null,null,null,null,null,null,null,null,null,null,null,null,null,null,null,null,null,null,null,null,null,null,null,null,null,null,null,null,null,null,null,null,null,null,null,null,null,null,null,null,null,null,null,null,null,null,null,null,null,null,null,null,null,null,null,null,null,null,null,null,null,null,null,null,null,null,null,null,null,null,null,null,null,{"$f":"Input_Commuter!BL12+Input_Commuter!BN12+Input_Commuter!CW12+Input_Commuter!CY12","v":0},{"$f":"Input_Commuter!BP12+Input_Commuter!DA12","v":0},{"$f":"Input_Commuter!BR12+Input_Commuter!DC12","v":0},{"$f":"Input_Commuter!BT12+Input_Commuter!DE12","v":0},{"$f":"Input_Commuter!BV12+Input_Commuter!DG12","v":0},{"$f":"Input_Commuter!AA12+Input_Commuter!AC12","v":0},{"$f":"Input_Commuter!AE12","v":0},{"$f":"Input_Commuter!AG12","v":0},{"$f":"Input_Commuter!AI12","v":0},{"$f":"Input_Commuter!AK12","v":0}]
[null,null,1992,null,null,null,null,null,null,null,null,null,null,null,null,null,null,null,null,null,null,null,null,null,null,null,null,null,null,null,null,null,null,null,null,null,null,null,null,null,null,null,null,null,null,null,null,null,null,null,null,null,null,null,null,null,null,null,null,null,null,null,null,null,null,null,null,null,null,null,null,null,null,null,null,null,null,null,{"$f":"Input_Commuter!BL13+Input_Commuter!BN13+Input_Commuter!CW13+Input_Commuter!CY13","v":0},{"$f":"Input_Commuter!BP13+Input_Commuter!DA13","v":0},{"$f":"Input_Commuter!BR13+Input_Commuter!DC13","v":0},{"$f":"Input_Commuter!BT13+Input_Commuter!DE13","v":0},{"$f":"Input_Commuter!BV13+Input_Commuter!DG13","v":0},{"$f":"Input_Commuter!AA13+Input_Commuter!AC13","v":0},{"$f":"Input_Commuter!AE13","v":0},{"$f":"Input_Commuter!AG13","v":0},{"$f":"Input_Commuter!AI13","v":0},{"$f":"Input_Commuter!AK13","v":0}]
[null,null,1993,null,null,null,null,null,null,null,null,null,null,null,null,null,null,null,null,null,null,null,null,null,null,null,null,null,null,null,null,null,null,null,null,null,null,null,null,null,null,null,null,null,null,null,null,null,null,null,null,null,null,null,null,null,null,null,null,null,null,null,null,null,null,null,null,null,null,null,null,null,null,null,null,null,null,null,{"$f":"Input_Commuter!BL14+Input_Commuter!BN14+Input_Commuter!CW14+Input_Commuter!CY14","v":0},{"$f":"Input_Commuter!BP14+Input_Commuter!DA14","v":0},{"$f":"Input_Commuter!BR14+Input_Commuter!DC14","v":0},{"$f":"Input_Commuter!BT14+Input_Commuter!DE14","v":0},{"$f":"Input_Commuter!BV14+Input_Commuter!DG14","v":0},{"$f":"Input_Commuter!AA14+Input_Commuter!AC14","v":0},{"$f":"Input_Commuter!AE14","v":0},{"$f":"Input_Commuter!AG14","v":0},{"$f":"Input_Commuter!AI14","v":0},{"$f":"Input_Commuter!AK14","v":0}]
[null,null,1994,null,null,null,null,null,null,null,null,null,null,null,null,null,null,null,null,null,null,null,null,null,null,null,null,null,null,null,null,null,null,null,null,null,null,null,null,null,null,null,null,null,null,null,null,null,null,null,null,null,null,null,null,null,null,null,null,null,null,null,null,null,null,null,null,null,null,null,null,null,null,null,null,null,null,null,{"$f":"Input_Commuter!BL15+Input_Commuter!BN15+Input_Commuter!CW15+Input_Commuter!CY15","v":0},{"$f":"Input_Commuter!BP15+Input_Commuter!DA15","v":0},{"$f":"Input_Commuter!BR15+Input_Commuter!DC15","v":0},{"$f":"Input_Commuter!BT15+Input_Commuter!DE15","v":0},{"$f":"Input_Commuter!BV15+Input_Commuter!DG15","v":0},{"$f":"Input_Commuter!AA15+Input_Commuter!AC15","v":0},{"$f":"Input_Commuter!AE15","v":0},{"$f":"Input_Commuter!AG15","v":0},{"$f":"Input_Commuter!AI15","v":0},{"$f":"Input_Commuter!AK15","v":0}]
[null,null,1995,null,null,null,null,null,null,null,null,null,null,null,null,null,null,null,null,null,null,null,null,null,null,null,null,null,null,null,null,null,null,null,null,null,null,null,null,null,null,null,null,null,null,null,null,null,null,null,null,null,null,null,null,null,null,null,null,null,null,null,null,null,null,null,null,null,null,null,null,null,null,null,null,null,null,null,{"$f":"Input_Commuter!BL16+Input_Commuter!BN16+Input_Commuter!CW16+Input_Commuter!CY16","v":0},{"$f":"Input_Commuter!BP16+Input_Commuter!DA16","v":0},{"$f":"Input_Commuter!BR16+Input_Commuter!DC16","v":0},{"$f":"Input_Commuter!BT16+Input_Commuter!DE16","v":0},{"$f":"Input_Commuter!BV16+Input_Commuter!DG16","v":0},{"$f":"Input_Commuter!AA16+Input_Commuter!AC16","v":0},{"$f":"Input_Commuter!AE16","v":0},{"$f":"Input_Commuter!AG16","v":0},{"$f":"Input_Commuter!AI16","v":0},{"$f":"Input_Commuter!AK16","v":0}]
[null,null,1996,null,null,null,null,null,null,null,null,null,null,null,null,null,null,null,null,null,null,null,null,null,null,null,null,null,null,null,null,null,null,null,null,null,null,null,null,null,null,null,null,null,null,null,null,null,null,null,null,null,null,null,null,null,null,null,null,null,null,null,null,null,null,null,null,null,null,null,null,null,null,null,null,null,null,null,{"$f":"Input_Commuter!BL17+Input_Commuter!BN17+Input_Commuter!CW17+Input_Commuter!CY17","v":0},{"$f":"Input_Commuter!BP17+Input_Commuter!DA17","v":0},{"$f":"Input_Commuter!BR17+Input_Commuter!DC17","v":0},{"$f":"Input_Commuter!BT17+Input_Commuter!DE17","v":0},{"$f":"Input_Commuter!BV17+Input_Commuter!DG17","v":0},{"$f":"Input_Commuter!AA17+Input_Commuter!AC17","v":0},{"$f":"Input_Commuter!AE17","v":0},{"$f":"Input_Commuter!AG17","v":0},{"$f":"Input_Commuter!AI17","v":0},{"$f":"Input_Commuter!AK17","v":0}]
[null,null,1997,null,null,null,null,null,null,null,null,null,null,null,null,null,null,null,null,null,null,null,null,null,null,null,null,null,null,null,null,null,null,null,null,null,null,null,null,null,null,null,null,null,null,null,null,null,null,null,null,null,null,null,null,null,null,null,null,null,null,null,null,null,null,null,null,null,null,null,null,null,null,null,null,null,null,null,{"$f":"Input_Commuter!BL18+Input_Commuter!BN18+Input_Commuter!CW18+Input_Commuter!CY18","v":0},{"$f":"Input_Commuter!BP18+Input_Commuter!DA18","v":0},{"$f":"Input_Commuter!BR18+Input_Commuter!DC18","v":0},{"$f":"Input_Commuter!BT18+Input_Commuter!DE18","v":0},{"$f":"Input_Commuter!BV18+Input_Commuter!DG18","v":0},{"$f":"Input_Commuter!AA18+Input_Commuter!AC18","v":0},{"$f":"Input_Commuter!AE18","v":0},{"$f":"Input_Commuter!AG18","v":0},{"$f":"Input_Commuter!AI18","v":0},{"$f":"Input_Commuter!AK18","v":0}]
[null,null,1998,null,null,null,null,null,null,null,null,null,null,null,null,null,null,null,null,null,null,null,null,null,null,null,null,null,null,null,null,null,null,null,null,null,null,null,null,null,null,null,null,null,null,null,null,null,null,null,null,null,null,null,null,null,null,null,null,null,null,null,null,null,null,null,null,null,null,null,null,null,null,null,null,null,null,null,{"$f":"Input_Commuter!BL19+Input_Commuter!BN19+Input_Commuter!CW19+Input_Commuter!CY19","v":0},{"$f":"Input_Commuter!BP19+Input_Commuter!DA19","v":0},{"$f":"Input_Commuter!BR19+Input_Commuter!DC19","v":0},{"$f":"Input_Commuter!BT19+Input_Commuter!DE19","v":0},{"$f":"Input_Commuter!BV19+Input_Commuter!DG19","v":0},{"$f":"Input_Commuter!AA19+Input_Commuter!AC19","v":0},{"$f":"Input_Commuter!AE19","v":0},{"$f":"Input_Commuter!AG19","v":0},{"$f":"Input_Commuter!AI19","v":0},{"$f":"Input_Commuter!AK19","v":0}]
[null,null,1999,null,null,null,null,null,null,null,null,null,null,null,null,null,null,null,null,null,null,null,null,null,null,null,null,null,null,null,null,null,null,null,null,null,null,null,null,null,null,null,null,null,null,null,null,null,null,null,null,null,null,null,null,null,null,null,null,null,null,null,null,null,null,null,null,null,null,null,null,null,null,null,null,null,null,null,{"$f":"Input_Commuter!BL20+Input_Commuter!BN20+Input_Commuter!CW20+Input_Commuter!CY20","v":0},{"$f":"Input_Commuter!BP20+Input_Commuter!DA20","v":0},{"$f":"Input_Commuter!BR20+Input_Commuter!DC20","v":0},{"$f":"Input_Commuter!BT20+Input_Commuter!DE20","v":0},{"$f":"Input_Commuter!BV20+Input_Commuter!DG20","v":0},{"$f":"Input_Commuter!AA20+Input_Commuter!AC20","v":0},{"$f":"Input_Commuter!AE20","v":0},{"$f":"Input_Commuter!AG20","v":0},{"$f":"Input_Commuter!AI20","v":0},{"$f":"Input_Commuter!AK20","v":0}]
[null,null,2000,null,null,null,null,null,null,null,null,null,null,null,null,null,null,null,null,null,null,null,null,null,null,null,null,null,null,null,null,null,null,null,null,null,null,null,null,null,null,null,null,null,null,null,null,null,null,null,null,null,null,null,null,null,null,null,null,null,null,null,null,null,null,null,null,null,null,null,null,null,null,null,null,null,null,null,{"$f":"Input_Commuter!BL21+Input_Commuter!BN21+Input_Commuter!CW21+Input_Commuter!CY21","v":0},{"$f":"Input_Commuter!BP21+Input_Commuter!DA21","v":0},{"$f":"Input_Commuter!BR21+Input_Commuter!DC21","v":0},{"$f":"Input_Commuter!BT21+Input_Commuter!DE21","v":0},{"$f":"Input_Commuter!BV21+Input_Commuter!DG21","v":0},{"$f":"Input_Commuter!AA21+Input_Commuter!AC21","v":0},{"$f":"Input_Commuter!AE21","v":0},{"$f":"Input_Commuter!AG21","v":0},{"$f":"Input_Commuter!AI21","v":0},{"$f":"Input_Commuter!AK21","v":0}]
[null,null,2001,null,null,null,null,null,null,null,null,null,null,null,null,null,null,null,null,null,null,null,null,null,null,null,null,null,null,null,null,null,null,null,null,null,null,null,null,null,null,null,null,null,null,null,null,null,null,null,null,null,null,null,null,null,null,null,null,null,null,null,null,null,null,null,null,null,null,null,null,null,null,null,null,null,null,null,{"$f":"Input_Commuter!BL22+Input_Commuter!BN22+Input_Commuter!CW22+Input_Commuter!CY22","v":0},{"$f":"Input_Commuter!BP22+Input_Commuter!DA22","v":0},{"$f":"Input_Commuter!BR22+Input_Commuter!DC22","v":0},{"$f":"Input_Commuter!BT22+Input_Commuter!DE22","v":0},{"$f":"Input_Commuter!BV22+Input_Commuter!DG22","v":0},{"$f":"Input_Commuter!AA22+Input_Commuter!AC22","v":0},{"$f":"Input_Commuter!AE22","v":0},{"$f":"Input_Commuter!AG22","v":0},{"$f":"Input_Commuter!AI22","v":0},{"$f":"Input_Commuter!AK22","v":0}]
[null,null,2002,null,null,null,null,null,null,null,null,null,null,null,null,null,null,null,null,null,null,null,null,null,null,null,null,null,null,null,null,null,null,null,null,null,null,null,null,null,null,null,null,null,null,null,null,null,null,null,null,null,null,null,null,null,null,null,null,null,null,null,null,null,null,null,null,null,null,null,null,null,null,null,null,null,null,null,{"$f":"Input_Commuter!BL23+Input_Commuter!BN23+Input_Commuter!CW23+Input_Commuter!CY23","v":0},{"$f":"Input_Commuter!BP23+Input_Commuter!DA23","v":0},{"$f":"Input_Commuter!BR23+Input_Commuter!DC23","v":0},{"$f":"Input_Commuter!BT23+Input_Commuter!DE23","v":0},{"$f":"Input_Commuter!BV23+Input_Commuter!DG23","v":0},{"$f":"Input_Commuter!AA23+Input_Commuter!AC23","v":0},{"$f":"Input_Commuter!AE23","v":0},{"$f":"Input_Commuter!AG23","v":0},{"$f":"Input_Commuter!AI23","v":0},{"$f":"Input_Commuter!AK23","v":0}]
[null,null,2003,null,null,null,null,null,null,null,null,null,null,null,null,null,null,null,null,null,null,null,null,null,null,null,null,null,null,null,null,null,null,null,null,null,null,null,null,null,null,null,null,null,null,null,null,null,null,null,null,null,null,null,null,null,null,null,null,null,null,null,null,null,null,null,null,null,null,null,null,null,null,null,null,null,null,null,{"$f":"Input_Commuter!BL24+Input_Commuter!BN24+Input_Commuter!CW24+Input_Commuter!CY24","v":0},{"$f":"Input_Commuter!BP24+Input_Commuter!DA24","v":0},{"$f":"Input_Commuter!BR24+Input_Commuter!DC24","v":0},{"$f":"Input_Commuter!BT24+Input_Commuter!DE24","v":0},{"$f":"Input_Commuter!BV24+Input_Commuter!DG24","v":0},{"$f":"Input_Commuter!AA24+Input_Commuter!AC24","v":0},{"$f":"Input_Commuter!AE24","v":0},{"$f":"Input_Commuter!AG24","v":0},{"$f":"Input_Commuter!AI24","v":0},{"$f":"Input_Commuter!AK24","v":0}]
[null,null,2004,null,null,null,null,null,null,null,null,null,null,null,null,null,null,null,null,null,null,null,null,null,null,null,null,null,null,null,null,null,null,null,null,null,null,null,null,null,null,null,null,null,null,null,null,null,null,null,null,null,null,null,null,null,null,null,null,null,null,null,null,null,null,null,null,null,null,null,null,null,null,null,null,null,null,null,{"$f":"Input_Commuter!BL25+Input_Commuter!BN25+Input_Commuter!CW25+Input_Commuter!CY25","v":0},{"$f":"Input_Commuter!BP25+Input_Commuter!DA25","v":0},{"$f":"Input_Commuter!BR25+Input_Commuter!DC25","v":0},{"$f":"Input_Commuter!BT25+Input_Commuter!DE25","v":0},{"$f":"Input_Commuter!BV25+Input_Commuter!DG25","v":0},{"$f":"Input_Commuter!AA25+Input_Commuter!AC25","v":0},{"$f":"Input_Commuter!AE25","v":0},{"$f":"Input_Commuter!AG25","v":0},{"$f":"Input_Commuter!AI25","v":0},{"$f":"Input_Commuter!AK25","v":0}]
[null,null,2005,null,null,null,null,null,null,null,null,null,null,null,null,null,null,null,null,null,null,null,null,null,null,null,null,null,null,null,null,null,null,null,null,null,null,null,null,null,null,null,null,null,null,null,null,null,null,null,null,null,null,null,null,null,null,null,null,null,null,null,null,null,null,null,null,null,null,null,null,null,null,null,null,null,null,null,{"$f":"Input_Commuter!BL26+Input_Commuter!BN26+Input_Commuter!CW26+Input_Commuter!CY26","v":0},{"$f":"Input_Commuter!BP26+Input_Commuter!DA26","v":0},{"$f":"Input_Commuter!BR26+Input_Commuter!DC26","v":0},{"$f":"Input_Commuter!BT26+Input_Commuter!DE26","v":0},{"$f":"Input_Commuter!BV26+Input_Commuter!DG26","v":0},{"$f":"Input_Commuter!AA26+Input_Commuter!AC26","v":0},{"$f":"Input_Commuter!AE26","v":0},{"$f":"Input_Commuter!AG26","v":0},{"$f":"Input_Commuter!AI26","v":0},{"$f":"Input_Commuter!AK26","v":0}]
[null,null,2006,null,null,null,null,null,null,null,null,null,null,null,null,null,null,null,null,null,null,null,null,null,null,null,null,null,null,null,null,null,null,null,null,null,null,null,null,null,null,null,null,null,null,null,null,null,null,null,null,null,null,null,null,null,null,null,null,null,null,null,null,null,null,null,null,null,null,null,null,null,null,null,null,null,null,null,{"$f":"Input_Commuter!BL27+Input_Commuter!BN27+Input_Commuter!CW27+Input_Commuter!CY27","v":0},{"$f":"Input_Commuter!BP27+Input_Commuter!DA27","v":0},{"$f":"Input_Commuter!BR27+Input_Commuter!DC27","v":0},{"$f":"Input_Commuter!BT27+Input_Commuter!DE27","v":0},{"$f":"Input_Commuter!BV27+Input_Commuter!DG27","v":0},{"$f":"Input_Commuter!AA27+Input_Commuter!AC27","v":0},{"$f":"Input_Commuter!AE27","v":0},{"$f":"Input_Commuter!AG27","v":0},{"$f":"Input_Commuter!AI27","v":0},{"$f":"Input_Commuter!AK27","v":0}]
[null,null,2007,null,null,null,null,null,null,null,null,null,null,null,null,null,null,null,null,null,null,null,null,null,null,null,null,null,null,null,null,null,null,null,null,null,null,null,null,null,null,null,null,null,null,null,null,null,null,null,null,null,null,null,null,null,null,null,null,null,null,null,null,null,null,null,null,null,null,null,null,null,null,null,null,null,null,null,{"$f":"Input_Commuter!BL28+Input_Commuter!BN28+Input_Commuter!CW28+Input_Commuter!CY28","v":0},{"$f":"Input_Commuter!BP28+Input_Commuter!DA28","v":0},{"$f":"Input_Commuter!BR28+Input_Commuter!DC28","v":0},{"$f":"Input_Commuter!BT28+Input_Commuter!DE28","v":0},{"$f":"Input_Commuter!BV28+Input_Commuter!DG28","v":0},{"$f":"Input_Commuter!AA28+Input_Commuter!AC28","v":0},{"$f":"Input_Commuter!AE28","v":0},{"$f":"Input_Commuter!AG28","v":0},{"$f":"Input_Commuter!AI28","v":0},{"$f":"Input_Commuter!AK28","v":0}]
[null,null,2008,null,null,null,null,null,null,null,null,null,null,null,null,null,null,null,null,null,null,null,null,null,null,null,null,null,null,null,null,null,null,null,null,null,null,null,null,null,null,null,null,null,null,null,null,null,null,null,null,null,null,null,null,null,null,null,null,null,null,null,null,null,null,null,null,null,null,null,null,null,null,null,null,null,null,null,{"$f":"Input_Commuter!BL29+Input_Commuter!BN29+Input_Commuter!CW29+Input_Commuter!CY29","v":0},{"$f":"Input_Commuter!BP29+Input_Commuter!DA29","v":0},{"$f":"Input_Commuter!BR29+Input_Commuter!DC29","v":0},{"$f":"Input_Commuter!BT29+Input_Commuter!DE29","v":0},{"$f":"Input_Commuter!BV29+Input_Commuter!DG29","v":0},{"$f":"Input_Commuter!AA29+Input_Commuter!AC29","v":0},{"$f":"Input_Commuter!AE29","v":0},{"$f":"Input_Commuter!AG29","v":0},{"$f":"Input_Commuter!AI29","v":0},{"$f":"Input_Commuter!AK29","v":0}]
[null,null,2009,null,null,null,null,null,null,null,null,null,null,null,null,null,null,null,null,null,null,null,null,null,null,null,null,null,null,null,null,null,null,null,null,null,null,null,null,null,null,null,null,null,null,null,null,null,null,null,null,null,null,null,null,null,null,null,null,null,null,null,null,null,null,null,null,null,null,null,null,null,null,null,null,null,null,null,{"$f":"Input_Commuter!BL30+Input_Commuter!BN30+Input_Commuter!CW30+Input_Commuter!CY30","v":0},{"$f":"Input_Commuter!BP30+Input_Commuter!DA30","v":0},{"$f":"Input_Commuter!BR30+Input_Commuter!DC30","v":0},{"$f":"Input_Commuter!BT30+Input_Commuter!DE30","v":0},{"$f":"Input_Commuter!BV30+Input_Commuter!DG30","v":0},{"$f":"Input_Commuter!AA30+Input_Commuter!AC30","v":0},{"$f":"Input_Commuter!AE30","v":0},{"$f":"Input_Commuter!AG30","v":0},{"$f":"Input_Commuter!AI30","v":0},{"$f":"Input_Commuter!AK30","v":0}]
[null,null,2010,null,null,null,null,null,null,null,null,null,null,null,null,null,null,null,null,null,null,null,null,null,null,null,null,null,null,null,null,null,null,null,null,null,null,null,null,null,null,null,null,null,null,null,null,null,null,null,null,null,null,null,null,null,null,null,null,null,null,null,null,null,null,null,null,null,null,null,null,null,null,null,null,null,null,null,{"$f":"Input_Commuter!BL31+Input_Commuter!BN31+Input_Commuter!CW31+Input_Commuter!CY31","v":0},{"$f":"Input_Commuter!BP31+Input_Commuter!DA31","v":0},{"$f":"Input_Commuter!BR31+Input_Commuter!DC31","v":0},{"$f":"Input_Commuter!BT31+Input_Commuter!DE31","v":0},{"$f":"Input_Commuter!BV31+Input_Commuter!DG31","v":0},{"$f":"Input_Commuter!AA31+Input_Commuter!AC31","v":0},{"$f":"Input_Commuter!AE31","v":0},{"$f":"Input_Commuter!AG31","v":0},{"$f":"Input_Commuter!AI31","v":0},{"$f":"Input_Commuter!AK31","v":0}]
[null,null,2011,null,null,null,null,null,null,null,null,null,null,null,null,null,null,null,null,null,null,null,null,null,null,null,null,null,null,null,null,null,null,null,null,null,null,null,null,null,null,null,null,null,null,null,null,null,null,null,null,null,null,null,null,null,null,null,null,null,null,null,null,null,null,null,null,null,null,null,null,null,null,null,null,null,null,null,{"$f":"Input_Commuter!BL32+Input_Commuter!BN32+Input_Commuter!CW32+Input_Commuter!CY32","v":0},{"$f":"Input_Commuter!BP32+Input_Commuter!DA32","v":0},{"$f":"Input_Commuter!BR32+Input_Commuter!DC32","v":0},{"$f":"Input_Commuter!BT32+Input_Commuter!DE32","v":0},{"$f":"Input_Commuter!BV32+Input_Commuter!DG32","v":0},{"$f":"Input_Commuter!AA32+Input_Commuter!AC32","v":0},{"$f":"Input_Commuter!AE32","v":0},{"$f":"Input_Commuter!AG32","v":0},{"$f":"Input_Commuter!AI32","v":0},{"$f":"Input_Commuter!AK32","v":0}]
[null,null,2012,null,null,null,null,null,null,null,null,null,null,null,null,null,null,null,null,null,null,null,null,null,null,null,null,null,null,null,null,null,null,null,null,null,null,null,null,null,null,null,null,null,null,null,null,null,null,null,null,null,null,null,null,null,null,null,null,null,null,null,null,null,null,null,null,null,null,null,null,null,null,null,null,null,null,null,{"$f":"Input_Commuter!BL33+Input_Commuter!BN33+Input_Commuter!CW33+Input_Commuter!CY33","v":0},{"$f":"Input_Commuter!BP33+Input_Commuter!DA33","v":0},{"$f":"Input_Commuter!BR33+Input_Commuter!DC33","v":0},{"$f":"Input_Commuter!BT33+Input_Commuter!DE33","v":0},{"$f":"Input_Commuter!BV33+Input_Commuter!DG33","v":0},{"$f":"Input_Commuter!AA33+Input_Commuter!AC33","v":0},{"$f":"Input_Commuter!AE33","v":0},{"$f":"Input_Commuter!AG33","v":0},{"$f":"Input_Commuter!AI33","v":0},{"$f":"Input_Commuter!AK33","v":0}]
[null,null,2013,null,null,null,null,null,null,null,null,null,null,null,null,null,null,null,null,null,null,null,null,null,null,null,null,null,null,null,null,null,null,null,null,null,null,null,null,null,null,null,null,null,null,null,null,null,null,null,null,null,null,null,null,null,null,null,null,null,null,null,null,null,null,null,null,null,null,null,null,null,null,null,null,null,null,null,{"$f":"Input_Commuter!BL34+Input_Commuter!BN34+Input_Commuter!CW34+Input_Commuter!CY34","v":0},{"$f":"Input_Commuter!BP34+Input_Commuter!DA34","v":0},{"$f":"Input_Commuter!BR34+Input_Commuter!DC34","v":0},{"$f":"Input_Commuter!BT34+Input_Commuter!DE34","v":0},{"$f":"Input_Commuter!BV34+Input_Commuter!DG34","v":0},{"$f":"Input_Commuter!AA34+Input_Commuter!AC34","v":0},{"$f":"Input_Commuter!AE34","v":0},{"$f":"Input_Commuter!AG34","v":0},{"$f":"Input_Commuter!AI34","v":0},{"$f":"Input_Commuter!AK34","v":0}]
[null,null,2014,930040648.39515579,109551911.6151091,21146909.522727292,23609,4510,6688,2407,6201,11186689,1340112,null,null,null,null,null,null,null,null,null,null,null,null,null,null,null,258998,null,null,null,null,null,605949,null,null,null,null,null,null,null,null,921932,null,null,null,182231,38783,1389,1886,null,null,null,null,null,null,null,null,null,null,null,null,null,null,null,null,null,null,null,null,null,null,null,null,215642325,71861,32596,{"$f":"Input_Commuter!BL35+Input_Commuter!BN35+Input_Commuter!CW35+Input_Commuter!CY35","v":156193},{"$f":"Input_Commuter!BP35+Input_Commuter!DA35","v":36346111.100000001},{"$f":"Input_Commuter!BR35+Input_Commuter!DC35","v":812203.6},{"$f":"Input_Commuter!BT35+Input_Commuter!DE35","v":187431.6},{"$f":"Input_Commuter!BV35+Input_Commuter!DG35","v":0},{"$f":"Input_Commuter!AA35+Input_Commuter!AC35","v":1127113.6000000001},{"$f":"Input_Commuter!AE35","v":24796499.200000003},{"$f":"Input_Commuter!AG35","v":18597374.400000002},{"$f":"Input_Commuter!AI35","v":338134.08},{"$f":"Input_Commuter!AK35","v":0},20673894,2444429,null,null,2806848,null,null,4547080,null,null,null,null,null,3150,null,null,null,null,null,null,null,null,112959,null,null,342612,null,null,null,null,null,null,74570000]
[null,null,2015,null,null,null,null,null,null,null,null,null,null,null,null,null,null,null,null,null,null,null,null,null,null,null,null,null,null,null,null,null,null,null,null,null,null,null,null,null,null,null,null,null,null,null,null,null,null,null,null,null,null,null,null,null,null,null,null,null,null,null,null,null,null,null,null,null,null,null,null,null,null,null,null,null,null,null,{"$f":"Input_Commuter!BL36+Input_Commuter!BN36+Input_Commuter!CW36+Input_Commuter!CY36","v":0},{"$f":"Input_Commuter!BP36+Input_Commuter!DA36","v":0},{"$f":"Input_Commuter!BR36+Input_Commuter!DC36","v":0},{"$f":"Input_Commuter!BT36+Input_Commuter!DE36","v":0},{"$f":"Input_Commuter!BV36+Input_Commuter!DG36","v":0},{"$f":"Input_Commuter!AA36+Input_Commuter!AC36","v":0},{"$f":"Input_Commuter!AE36","v":0},{"$f":"Input_Commuter!AG36","v":0},{"$f":"Input_Commuter!AI36","v":0},{"$f":"Input_Commuter!AK36","v":0}]
[null,null,2016,null,null,null,null,null,null,null,null,null,null,null,null,null,null,null,null,null,null,null,null,null,null,null,null,null,null,null,null,null,null,null,null,null,null,null,null,null,null,null,null,null,null,null,null,null,null,null,null,null,null,null,null,null,null,null,null,null,null,null,null,null,null,null,null,null,null,null,null,null,null,null,null,null,null,null,{"$f":"Input_Commuter!BL37+Input_Commuter!BN37+Input_Commuter!CW37+Input_Commuter!CY37","v":0},{"$f":"Input_Commuter!BP37+Input_Commuter!DA37","v":0},{"$f":"Input_Commuter!BR37+Input_Commuter!DC37","v":0},{"$f":"Input_Commuter!BT37+Input_Commuter!DE37","v":0},{"$f":"Input_Commuter!BV37+Input_Commuter!DG37","v":0},{"$f":"Input_Commuter!AA37+Input_Commuter!AC37","v":0},{"$f":"Input_Commuter!AE37","v":0},{"$f":"Input_Commuter!AG37","v":0},{"$f":"Input_Commuter!AI37","v":0},{"$f":"Input_Commuter!AK37","v":0}]
[null,null,2017,0,0,0,28125,3418,null,1980,{"$f":"8129-J38","v":6149},10970240,1297420.9439590001,null,null,null,null,null,null,null,null,null,null,null,null,null,null,null,149589,null,null,null,null,null,620381,null,null,null,null,null,null,null,null,708352.60700000008,null,null,null,202071,34330,null,null,1797,599,null,null,null,null,null,null,null,null,null,null,null,null,null,null,null,null,null,null,null,null,null,null,217431719.46800002,71873.218049999996,34540.963200000006,{"$f":"Input_Commuter!BL38+Input_Commuter!BN38+Input_Commuter!CW38+Input_Commuter!CY38","v":112180.20000000001},{"$f":"Input_Commuter!BP38+Input_Commuter!DA38","v":43021106.700000003},{"$f":"Input_Commuter!BR38+Input_Commuter!DC38","v":2430571},{"$f":"Input_Commuter!BT38+Input_Commuter!DE38","v":224360.40000000002},{"$f":"Input_Commuter!BV38+Input_Commuter!DG38","v":0},{"$f":"Input_Commuter!AA38+Input_Commuter!AC38","v":596098.88},{"$f":"Input_Commuter!AE38","v":32097632},{"$f":"Input_Commuter!AG38","v":5960988.7999999998},{"$f":"Input_Commuter!AI38","v":137561.28},{"$f":"Input_Commuter!AK38","v":0},35559443.130000003,3664614.71,70000,null,1288391.6600000001,null,null,5106311.34,null,null,null,null,null,2305.58,null,null,null,182.11,null,null,null,337830830,null,205163,63257,671,165334,null,null,null,null,null,218720938.79700002]
[null,null,2018,null,null,null,null,null,null,null,null,null,null,null,null,null,null,null,null,null,null,null,null,null,null,null,null,null,null,null,null,null,null,null,null,null,null,null,null,null,null,null,null,null,null,null,null,null,null,null,null,null,null,null,null,null,null,null,null,null,null,null,null,null,null,null,null,null,null,null,null,null,null,null,null,null,null,null,{"$f":"Input_Commuter!BL39+Input_Commuter!BN39+Input_Commuter!CW39+Input_Commuter!CY39","v":0},{"$f":"Input_Commuter!BP39+Input_Commuter!DA39","v":0},{"$f":"Input_Commuter!BR39+Input_Commuter!DC39","v":0},{"$f":"Input_Commuter!BT39+Input_Commuter!DE39","v":0},{"$f":"Input_Commuter!BV39+Input_Commuter!DG39","v":0},{"$f":"Input_Commuter!AA39+Input_Commuter!AC39","v":0},{"$f":"Input_Commuter!AE39","v":0},{"$f":"Input_Commuter!AG39","v":0},{"$f":"Input_Commuter!AI39","v":0},{"$f":"Input_Commuter!AK39","v":0}]
[null,null,2019,null,null,null,null,null,null,null,null,null,null,null,null,null,null,null,null,null,null,null,null,null,null,null,null,null,null,null,null,null,null,null,null,null,null,null,null,null,null,null,null,null,null,null,null,null,null,null,null,null,null,null,null,null,null,null,null,null,null,null,null,null,null,null,null,null,null,null,null,null,null,null,null,null,null,null,{"$f":"Input_Commuter!BL40+Input_Commuter!BN40+Input_Commuter!CW40+Input_Commuter!CY40","v":0},{"$f":"Input_Commuter!BP40+Input_Commuter!DA40","v":0},{"$f":"Input_Commuter!BR40+Input_Commuter!DC40","v":0},{"$f":"Input_Commuter!BT40+Input_Commuter!DE40","v":0},{"$f":"Input_Commuter!BV40+Input_Commuter!DG40","v":0},{"$f":"Input_Commuter!AA40+Input_Commuter!AC40","v":0},{"$f":"Input_Commuter!AE40","v":0},{"$f":"Input_Commuter!AG40","v":0},{"$f":"Input_Commuter!AI40","v":0},{"$f":"Input_Commuter!AK40","v":0}]
[null,null,2020,null,null,null,null,null,null,null,null,null,null,null,null,null,null,null,null,null,null,null,null,null,null,null,null,null,null,null,null,null,null,null,null,null,null,null,null,null,null,null,null,null,null,null,null,null,null,null,null,null,null,null,null,null,null,null,null,null,null,null,null,null,null,null,null,null,null,null,null,null,null,null,null,null,null,null,{"$f":"Input_Commuter!BL41+Input_Commuter!BN41+Input_Commuter!CW41+Input_Commuter!CY41","v":0},{"$f":"Input_Commuter!BP41+Input_Commuter!DA41","v":0},{"$f":"Input_Commuter!BR41+Input_Commuter!DC41","v":0},{"$f":"Input_Commuter!BT41+Input_Commuter!DE41","v":0},{"$f":"Input_Commuter!BV41+Input_Commuter!DG41","v":0},{"$f":"Input_Commuter!AA41+Input_Commuter!AC41","v":0},{"$f":"Input_Commuter!AE41","v":0},{"$f":"Input_Commuter!AG41","v":0},{"$f":"Input_Commuter!AI41","v":0},{"$f":"Input_Commuter!AK41","v":0}]
[null,null,2021,null,null,null,null,null,null,null,null,null,null,null,null,null,null,null,null,null,null,null,null,null,null,null,null,null,null,null,null,null,null,null,null,null,null,null,null,null,null,null,null,null,null,null,null,null,null,null,null,null,null,null,null,null,null,null,null,null,null,null,null,null,null,null,null,null,null,null,null,null,null,null,null,null,null,null,{"$f":"Input_Commuter!BL42+Input_Commuter!BN42+Input_Commuter!CW42+Input_Commuter!CY42","v":0},{"$f":"Input_Commuter!BP42+Input_Commuter!DA42","v":0},{"$f":"Input_Commuter!BR42+Input_Commuter!DC42","v":0},{"$f":"Input_Commuter!BT42+Input_Commuter!DE42","v":0},{"$f":"Input_Commuter!BV42+Input_Commuter!DG42","v":0},{"$f":"Input_Commuter!AA42+Input_Commuter!AC42","v":0},{"$f":"Input_Commuter!AE42","v":0},{"$f":"Input_Commuter!AG42","v":0},{"$f":"Input_Commuter!AI42","v":0},{"$f":"Input_Commuter!AK42","v":0}]
[null,null,2022,null,null,null,null,null,null,null,null,null,null,null,null,null,null,null,null,null,null,null,null,null,null,null,null,null,null,null,null,null,null,null,null,null,null,null,null,null,null,null,null,null,null,null,null,null,null,null,null,null,null,null,null,null,null,null,null,null,null,null,null,null,null,null,null,null,null,null,null,null,null,null,null,null,null,null,{"$f":"Input_Commuter!BL43+Input_Commuter!BN43+Input_Commuter!CW43+Input_Commuter!CY43","v":0},{"$f":"Input_Commuter!BP43+Input_Commuter!DA43","v":0},{"$f":"Input_Commuter!BR43+Input_Commuter!DC43","v":0},{"$f":"Input_Commuter!BT43+Input_Commuter!DE43","v":0},{"$f":"Input_Commuter!BV43+Input_Commuter!DG43","v":0},{"$f":"Input_Commuter!AA43+Input_Commuter!AC43","v":0},{"$f":"Input_Commuter!AE43","v":0},{"$f":"Input_Commuter!AG43","v":0},{"$f":"Input_Commuter!AI43","v":0},{"$f":"Input_Commuter!AK43","v":0}]
[null,null,2023,null,null,null,null,null,null,null,null,null,null,null,null,null,null,null,null,null,null,null,null,null,null,null,null,null,null,null,null,null,null,null,null,null,null,null,null,null,null,null,null,null,null,null,null,null,null,null,null,null,null,null,null,null,null,null,null,null,null,null,null,null,null,null,null,null,null,null,null,null,null,null,null,null,null,null,{"$f":"Input_Commuter!BL44+Input_Commuter!BN44+Input_Commuter!CW44+Input_Commuter!CY44","v":0},{"$f":"Input_Commuter!BP44+Input_Commuter!DA44","v":0},{"$f":"Input_Commuter!BR44+Input_Commuter!DC44","v":0},{"$f":"Input_Commuter!BT44+Input_Commuter!DE44","v":0},{"$f":"Input_Commuter!BV44+Input_Commuter!DG44","v":0},{"$f":"Input_Commuter!AA44+Input_Commuter!AC44","v":0},{"$f":"Input_Commuter!AE44","v":0},{"$f":"Input_Commuter!AG44","v":0},{"$f":"Input_Commuter!AI44","v":0},{"$f":"Input_Commuter!AK44","v":0}]
[null,null,2024,null,null,null,null,null,null,null,null,null,null,null,null,null,null,null,null,null,null,null,null,null,null,null,null,null,null,null,null,null,null,null,null,null,null,null,null,null,null,null,null,null,null,null,null,null,null,null,null,null,null,null,null,null,null,null,null,null,null,null,null,null,null,null,null,null,null,null,null,null,null,null,null,null,null,null,{"$f":"Input_Commuter!BL45+Input_Commuter!BN45+Input_Commuter!CW45+Input_Commuter!CY45","v":0},{"$f":"Input_Commuter!BP45+Input_Commuter!DA45","v":0},{"$f":"Input_Commuter!BR45+Input_Commuter!DC45","v":0},{"$f":"Input_Commuter!BT45+Input_Commuter!DE45","v":0},{"$f":"Input_Commuter!BV45+Input_Commuter!DG45","v":0},{"$f":"Input_Commuter!AA45+Input_Commuter!AC45","v":0},{"$f":"Input_Commuter!AE45","v":0},{"$f":"Input_Commuter!AG45","v":0},{"$f":"Input_Commuter!AI45","v":0},{"$f":"Input_Commuter!AK45","v":0}]
[null,null,2025,null,null,null,null,null,null,null,null,null,null,null,null,null,null,null,null,null,null,null,null,null,null,null,null,null,null,null,null,null,null,null,null,null,null,null,null,null,null,null,null,null,null,null,null,null,null,null,null,null,null,null,null,null,null,null,null,null,null,null,null,null,null,null,null,null,null,null,null,null,null,null,null,null,null,null,{"$f":"Input_Commuter!BL46+Input_Commuter!BN46+Input_Commuter!CW46+Input_Commuter!CY46","v":0},{"$f":"Input_Commuter!BP46+Input_Commuter!DA46","v":0},{"$f":"Input_Commuter!BR46+Input_Commuter!DC46","v":0},{"$f":"Input_Commuter!BT46+Input_Commuter!DE46","v":0},{"$f":"Input_Commuter!BV46+Input_Commuter!DG46","v":0},{"$f":"Input_Commuter!AA46+Input_Commuter!AC46","v":0},{"$f":"Input_Commuter!AE46","v":0},{"$f":"Input_Commuter!AG46","v":0},{"$f":"Input_Commuter!AI46","v":0},{"$f":"Input_Commuter!AK46","v":0}]
[null,null,2026,null,null,null,null,null,null,null,null,null,null,null,null,null,null,null,null,null,null,null,null,null,null,null,null,null,null,null,null,null,null,null,null,null,null,null,null,null,null,null,null,null,null,null,null,null,null,null,null,null,null,null,null,null,null,null,null,null,null,null,null,null,null,null,null,null,null,null,null,null,null,null,null,null,null,null,{"$f":"Input_Commuter!BL47+Input_Commuter!BN47+Input_Commuter!CW47+Input_Commuter!CY47","v":0},{"$f":"Input_Commuter!BP47+Input_Commuter!DA47","v":0},{"$f":"Input_Commuter!BR47+Input_Commuter!DC47","v":0},{"$f":"Input_Commuter!BT47+Input_Commuter!DE47","v":0},{"$f":"Input_Commuter!BV47+Input_Commuter!DG47","v":0},{"$f":"Input_Commuter!AA47+Input_Commuter!AC47","v":0},{"$f":"Input_Commuter!AE47","v":0},{"$f":"Input_Commuter!AG47","v":0},{"$f":"Input_Commuter!AI47","v":0},{"$f":"Input_Commuter!AK47","v":0}]
[null,null,2027,null,null,null,null,null,null,null,null,null,null,null,null,null,null,null,null,null,null,null,null,null,null,null,null,null,null,null,null,null,null,null,null,null,null,null,null,null,null,null,null,null,null,null,null,null,null,null,null,null,null,null,null,null,null,null,null,null,null,null,null,null,null,null,null,null,null,null,null,null,null,null,null,null,null,null,{"$f":"Input_Commuter!BL48+Input_Commuter!BN48+Input_Commuter!CW48+Input_Commuter!CY48","v":0},{"$f":"Input_Commuter!BP48+Input_Commuter!DA48","v":0},{"$f":"Input_Commuter!BR48+Input_Commuter!DC48","v":0},{"$f":"Input_Commuter!BT48+Input_Commuter!DE48","v":0},{"$f":"Input_Commuter!BV48+Input_Commuter!DG48","v":0},{"$f":"Input_Commuter!AA48+Input_Commuter!AC48","v":0},{"$f":"Input_Commuter!AE48","v":0},{"$f":"Input_Commuter!AG48","v":0},{"$f":"Input_Commuter!AI48","v":0},{"$f":"Input_Commuter!AK48","v":0}]
[null,null,2028,null,null,null,null,null,null,null,null,null,null,null,null,null,null,null,null,null,null,null,null,null,null,null,null,null,null,null,null,null,null,null,null,null,null,null,null,null,null,null,null,null,null,null,null,null,null,null,null,null,null,null,null,null,null,null,null,null,null,null,null,null,null,null,null,null,null,null,null,null,null,null,null,null,null,null,{"$f":"Input_Commuter!BL49+Input_Commuter!BN49+Input_Commuter!CW49+Input_Commuter!CY49","v":0},{"$f":"Input_Commuter!BP49+Input_Commuter!DA49","v":0},{"$f":"Input_Commuter!BR49+Input_Commuter!DC49","v":0},{"$f":"Input_Commuter!BT49+Input_Commuter!DE49","v":0},{"$f":"Input_Commuter!BV49+Input_Commuter!DG49","v":0},{"$f":"Input_Commuter!AA49+Input_Commuter!AC49","v":0},{"$f":"Input_Commuter!AE49","v":0},{"$f":"Input_Commuter!AG49","v":0},{"$f":"Input_Commuter!AI49","v":0},{"$f":"Input_Commuter!AK49","v":0}]
[null,null,2029,null,null,null,null,null,null,null,null,null,null,null,null,null,null,null,null,null,null,null,null,null,null,null,null,null,null,null,null,null,null,null,null,null,null,null,null,null,null,null,null,null,null,null,null,null,null,null,null,null,null,null,null,null,null,null,null,null,null,null,null,null,null,null,null,null,null,null,null,null,null,null,null,null,null,null,{"$f":"Input_Commuter!BL50+Input_Commuter!BN50+Input_Commuter!CW50+Input_Commuter!CY50","v":0},{"$f":"Input_Commuter!BP50+Input_Commuter!DA50","v":0},{"$f":"Input_Commuter!BR50+Input_Commuter!DC50","v":0},{"$f":"Input_Commuter!BT50+Input_Commuter!DE50","v":0},{"$f":"Input_Commuter!BV50+Input_Commuter!DG50","v":0},{"$f":"Input_Commuter!AA50+Input_Commuter!AC50","v":0},{"$f":"Input_Commuter!AE50","v":0},{"$f":"Input_Commuter!AG50","v":0},{"$f":"Input_Commuter!AI50","v":0},{"$f":"Input_Commuter!AK50","v":0}]
[null,null,2030,null,null,null,null,null,null,null,null,null,null,null,null,null,null,null,null,null,null,null,null,null,null,null,null,null,null,null,null,null,null,null,null,null,null,null,null,null,null,null,null,null,null,null,null,null,null,null,null,null,null,null,null,null,null,null,null,null,null,null,null,null,null,null,null,null,null,null,null,null,null,null,null,null,null,null,{"$f":"Input_Commuter!BL51+Input_Commuter!BN51+Input_Commuter!CW51+Input_Commuter!CY51","v":0},{"$f":"Input_Commuter!BP51+Input_Commuter!DA51","v":0},{"$f":"Input_Commuter!BR51+Input_Commuter!DC51","v":0},{"$f":"Input_Commuter!BT51+Input_Commuter!DE51","v":0},{"$f":"Input_Commuter!BV51+Input_Commuter!DG51","v":0},{"$f":"Input_Commuter!AA51+Input_Commuter!AC51","v":0},{"$f":"Input_Commuter!AE51","v":0},{"$f":"Input_Commuter!AG51","v":0},{"$f":"Input_Commuter!AI51","v":0},{"$f":"Input_Commuter!AK51","v":0}]
[null,null,2031,null,null,null,null,null,null,null,null,null,null,null,null,null,null,null,null,null,null,null,null,null,null,null,null,null,null,null,null,null,null,null,null,null,null,null,null,null,null,null,null,null,null,null,null,null,null,null,null,null,null,null,null,null,null,null,null,null,null,null,null,null,null,null,null,null,null,null,null,null,null,null,null,null,null,null,{"$f":"Input_Commuter!BL52+Input_Commuter!BN52+Input_Commuter!CW52+Input_Commuter!CY52","v":0},{"$f":"Input_Commuter!BP52+Input_Commuter!DA52","v":0},{"$f":"Input_Commuter!BR52+Input_Commuter!DC52","v":0},{"$f":"Input_Commuter!BT52+Input_Commuter!DE52","v":0},{"$f":"Input_Commuter!BV52+Input_Commuter!DG52","v":0},{"$f":"Input_Commuter!AA52+Input_Commuter!AC52","v":0},{"$f":"Input_Commuter!AE52","v":0},{"$f":"Input_Commuter!AG52","v":0},{"$f":"Input_Commuter!AI52","v":0},{"$f":"Input_Commuter!AK52","v":0}]
[null,null,2032,null,null,null,null,null,null,null,null,null,null,null,null,null,null,null,null,null,null,null,null,null,null,null,null,null,null,null,null,null,null,null,null,null,null,null,null,null,null,null,null,null,null,null,null,null,null,null,null,null,null,null,null,null,null,null,null,null,null,null,null,null,null,null,null,null,null,null,null,null,null,null,null,null,null,null,{"$f":"Input_Commuter!BL53+Input_Commuter!BN53+Input_Commuter!CW53+Input_Commuter!CY53","v":0},{"$f":"Input_Commuter!BP53+Input_Commuter!DA53","v":0},{"$f":"Input_Commuter!BR53+Input_Commuter!DC53","v":0},{"$f":"Input_Commuter!BT53+Input_Commuter!DE53","v":0},{"$f":"Input_Commuter!BV53+Input_Commuter!DG53","v":0},{"$f":"Input_Commuter!AA53+Input_Commuter!AC53","v":0},{"$f":"Input_Commuter!AE53","v":0},{"$f":"Input_Commuter!AG53","v":0},{"$f":"Input_Commuter!AI53","v":0},{"$f":"Input_Commuter!AK53","v":0}]
[null,null,2033,null,null,null,null,null,null,null,null,null,null,null,null,null,null,null,null,null,null,null,null,null,null,null,null,null,null,null,null,null,null,null,null,null,null,null,null,null,null,null,null,null,null,null,null,null,null,null,null,null,null,null,null,null,null,null,null,null,null,null,null,null,null,null,null,null,null,null,null,null,null,null,null,null,null,null,{"$f":"Input_Commuter!BL54+Input_Commuter!BN54+Input_Commuter!CW54+Input_Commuter!CY54","v":0},{"$f":"Input_Commuter!BP54+Input_Commuter!DA54","v":0},{"$f":"Input_Commuter!BR54+Input_Commuter!DC54","v":0},{"$f":"Input_Commuter!BT54+Input_Commuter!DE54","v":0},{"$f":"Input_Commuter!BV54+Input_Commuter!DG54","v":0},{"$f":"Input_Commuter!AA54+Input_Commuter!AC54","v":0},{"$f":"Input_Commuter!AE54","v":0},{"$f":"Input_Commuter!AG54","v":0},{"$f":"Input_Commuter!AI54","v":0},{"$f":"Input_Commuter!AK54","v":0}]
[null,null,2034,null,null,null,null,null,null,null,null,null,null,null,null,null,null,null,null,null,null,null,null,null,null,null,null,null,null,null,null,null,null,null,null,null,null,null,null,null,null,null,null,null,null,null,null,null,null,null,null,null,null,null,null,null,null,null,null,null,null,null,null,null,null,null,null,null,null,null,null,null,null,null,null,null,null,null,{"$f":"Input_Commuter!BL55+Input_Commuter!BN55+Input_Commuter!CW55+Input_Commuter!CY55","v":0},{"$f":"Input_Commuter!BP55+Input_Commuter!DA55","v":0},{"$f":"Input_Commuter!BR55+Input_Commuter!DC55","v":0},{"$f":"Input_Commuter!BT55+Input_Commuter!DE55","v":0},{"$f":"Input_Commuter!BV55+Input_Commuter!DG55","v":0},{"$f":"Input_Commuter!AA55+Input_Commuter!AC55","v":0},{"$f":"Input_Commuter!AE55","v":0},{"$f":"Input_Commuter!AG55","v":0},{"$f":"Input_Commuter!AI55","v":0},{"$f":"Input_Commuter!AK55","v":0}]
[null,null,2035,null,null,null,null,null,null,null,null,null,null,null,null,null,null,null,null,null,null,null,null,null,null,null,null,null,null,null,null,null,null,null,null,null,null,null,null,null,null,null,null,null,null,null,null,null,null,null,null,null,null,null,null,null,null,null,null,null,null,null,null,null,null,null,null,null,null,null,null,null,null,null,null,null,null,null,{"$f":"Input_Commuter!BL56+Input_Commuter!BN56+Input_Commuter!CW56+Input_Commuter!CY56","v":0},{"$f":"Input_Commuter!BP56+Input_Commuter!DA56","v":0},{"$f":"Input_Commuter!BR56+Input_Commuter!DC56","v":0},{"$f":"Input_Commuter!BT56+Input_Commuter!DE56","v":0},{"$f":"Input_Commuter!BV56+Input_Commuter!DG56","v":0},{"$f":"Input_Commuter!AA56+Input_Commuter!AC56","v":0},{"$f":"Input_Commuter!AE56","v":0},{"$f":"Input_Commuter!AG56","v":0},{"$f":"Input_Commuter!AI56","v":0},{"$f":"Input_Commuter!AK56","v":0}]
[null,null,2036,null,null,null,null,null,null,null,null,null,null,null,null,null,null,null,null,null,null,null,null,null,null,null,null,null,null,null,null,null,null,null,null,null,null,null,null,null,null,null,null,null,null,null,null,null,null,null,null,null,null,null,null,null,null,null,null,null,null,null,null,null,null,null,null,null,null,null,null,null,null,null,null,null,null,null,{"$f":"Input_Commuter!BL57+Input_Commuter!BN57+Input_Commuter!CW57+Input_Commuter!CY57","v":0},{"$f":"Input_Commuter!BP57+Input_Commuter!DA57","v":0},{"$f":"Input_Commuter!BR57+Input_Commuter!DC57","v":0},{"$f":"Input_Commuter!BT57+Input_Commuter!DE57","v":0},{"$f":"Input_Commuter!BV57+Input_Commuter!DG57","v":0},{"$f":"Input_Commuter!AA57+Input_Commuter!AC57","v":0},{"$f":"Input_Commuter!AE57","v":0},{"$f":"Input_Commuter!AG57","v":0},{"$f":"Input_Commuter!AI57","v":0},{"$f":"Input_Commuter!AK57","v":0}]
[null,null,2037,null,null,null,null,null,null,null,null,null,null,null,null,null,null,null,null,null,null,null,null,null,null,null,null,null,null,null,null,null,null,null,null,null,null,null,null,null,null,null,null,null,null,null,null,null,null,null,null,null,null,null,null,null,null,null,null,null,null,null,null,null,null,null,null,null,null,null,null,null,null,null,null,null,null,null,{"$f":"Input_Commuter!BL58+Input_Commuter!BN58+Input_Commuter!CW58+Input_Commuter!CY58","v":0},{"$f":"Input_Commuter!BP58+Input_Commuter!DA58","v":0},{"$f":"Input_Commuter!BR58+Input_Commuter!DC58","v":0},{"$f":"Input_Commuter!BT58+Input_Commuter!DE58","v":0},{"$f":"Input_Commuter!BV58+Input_Commuter!DG58","v":0},{"$f":"Input_Commuter!AA58+Input_Commuter!AC58","v":0},{"$f":"Input_Commuter!AE58","v":0},{"$f":"Input_Commuter!AG58","v":0},{"$f":"Input_Commuter!AI58","v":0},{"$f":"Input_Commuter!AK58","v":0}]
[null,null,2038,null,null,null,null,null,null,null,null,null,null,null,null,null,null,null,null,null,null,null,null,null,null,null,null,null,null,null,null,null,null,null,null,null,null,null,null,null,null,null,null,null,null,null,null,null,null,null,null,null,null,null,null,null,null,null,null,null,null,null,null,null,null,null,null,null,null,null,null,null,null,null,null,null,null,null,{"$f":"Input_Commuter!BL59+Input_Commuter!BN59+Input_Commuter!CW59+Input_Commuter!CY59","v":0},{"$f":"Input_Commuter!BP59+Input_Commuter!DA59","v":0},{"$f":"Input_Commuter!BR59+Input_Commuter!DC59","v":0},{"$f":"Input_Commuter!BT59+Input_Commuter!DE59","v":0},{"$f":"Input_Commuter!BV59+Input_Commuter!DG59","v":0},{"$f":"Input_Commuter!AA59+Input_Commuter!AC59","v":0},{"$f":"Input_Commuter!AE59","v":0},{"$f":"Input_Commuter!AG59","v":0},{"$f":"Input_Commuter!AI59","v":0},{"$f":"Input_Commuter!AK59","v":0}]
[null,null,2039,null,null,null,null,null,null,null,null,null,null,null,null,null,null,null,null,null,null,null,null,null,null,null,null,null,null,null,null,null,null,null,null,null,null,null,null,null,null,null,null,null,null,null,null,null,null,null,null,null,null,null,null,null,null,null,null,null,null,null,null,null,null,null,null,null,null,null,null,null,null,null,null,null,null,null,{"$f":"Input_Commuter!BL60+Input_Commuter!BN60+Input_Commuter!CW60+Input_Commuter!CY60","v":0},{"$f":"Input_Commuter!BP60+Input_Commuter!DA60","v":0},{"$f":"Input_Commuter!BR60+Input_Commuter!DC60","v":0},{"$f":"Input_Commuter!BT60+Input_Commuter!DE60","v":0},{"$f":"Input_Commuter!BV60+Input_Commuter!DG60","v":0},{"$f":"Input_Commuter!AA60+Input_Commuter!AC60","v":0},{"$f":"Input_Commuter!AE60","v":0},{"$f":"Input_Commuter!AG60","v":0},{"$f":"Input_Commuter!AI60","v":0},{"$f":"Input_Commuter!AK60","v":0}]
[null,null,2040,null,null,null,null,null,null,null,null,null,null,null,null,null,null,null,null,null,null,null,null,null,null,null,null,null,null,null,null,null,null,null,null,null,null,null,null,null,null,null,null,null,null,null,null,null,null,null,null,null,null,null,null,null,null,null,null,null,null,null,null,null,null,null,null,null,null,null,null,null,null,null,null,null,null,null,{"$f":"Input_Commuter!BL61+Input_Commuter!BN61+Input_Commuter!CW61+Input_Commuter!CY61","v":0},{"$f":"Input_Commuter!BP61+Input_Commuter!DA61","v":0},{"$f":"Input_Commuter!BR61+Input_Commuter!DC61","v":0},{"$f":"Input_Commuter!BT61+Input_Commuter!DE61","v":0},{"$f":"Input_Commuter!BV61+Input_Commuter!DG61","v":0},{"$f":"Input_Commuter!AA61+Input_Commuter!AC61","v":0},{"$f":"Input_Commuter!AE61","v":0},{"$f":"Input_Commuter!AG61","v":0},{"$f":"Input_Commuter!AI61","v":0},{"$f":"Input_Commuter!AK61","v":0}]
[null,null,2041,null,null,null,null,null,null,null,null,null,null,null,null,null,null,null,null,null,null,null,null,null,null,null,null,null,null,null,null,null,null,null,null,null,null,null,null,null,null,null,null,null,null,null,null,null,null,null,null,null,null,null,null,null,null,null,null,null,null,null,null,null,null,null,null,null,null,null,null,null,null,null,null,null,null,null,{"$f":"Input_Commuter!BL62+Input_Commuter!BN62+Input_Commuter!CW62+Input_Commuter!CY62","v":0},{"$f":"Input_Commuter!BP62+Input_Commuter!DA62","v":0},{"$f":"Input_Commuter!BR62+Input_Commuter!DC62","v":0},{"$f":"Input_Commuter!BT62+Input_Commuter!DE62","v":0},{"$f":"Input_Commuter!BV62+Input_Commuter!DG62","v":0},{"$f":"Input_Commuter!AA62+Input_Commuter!AC62","v":0},{"$f":"Input_Commuter!AE62","v":0},{"$f":"Input_Commuter!AG62","v":0},{"$f":"Input_Commuter!AI62","v":0},{"$f":"Input_Commuter!AK62","v":0}]
[null,null,2042,null,null,null,null,null,null,null,null,null,null,null,null,null,null,null,null,null,null,null,null,null,null,null,null,null,null,null,null,null,null,null,null,null,null,null,null,null,null,null,null,null,null,null,null,null,null,null,null,null,null,null,null,null,null,null,null,null,null,null,null,null,null,null,null,null,null,null,null,null,null,null,null,null,null,null,{"$f":"Input_Commuter!BL63+Input_Commuter!BN63+Input_Commuter!CW63+Input_Commuter!CY63","v":0},{"$f":"Input_Commuter!BP63+Input_Commuter!DA63","v":0},{"$f":"Input_Commuter!BR63+Input_Commuter!DC63","v":0},{"$f":"Input_Commuter!BT63+Input_Commuter!DE63","v":0},{"$f":"Input_Commuter!BV63+Input_Commuter!DG63","v":0},{"$f":"Input_Commuter!AA63+Input_Commuter!AC63","v":0},{"$f":"Input_Commuter!AE63","v":0},{"$f":"Input_Commuter!AG63","v":0},{"$f":"Input_Commuter!AI63","v":0},{"$f":"Input_Commuter!AK63","v":0}]
[null,null,2043,null,null,null,null,null,null,null,null,null,null,null,null,null,null,null,null,null,null,null,null,null,null,null,null,null,null,null,null,null,null,null,null,null,null,null,null,null,null,null,null,null,null,null,null,null,null,null,null,null,null,null,null,null,null,null,null,null,null,null,null,null,null,null,null,null,null,null,null,null,null,null,null,null,null,null,{"$f":"Input_Commuter!BL64+Input_Commuter!BN64+Input_Commuter!CW64+Input_Commuter!CY64","v":0},{"$f":"Input_Commuter!BP64+Input_Commuter!DA64","v":0},{"$f":"Input_Commuter!BR64+Input_Commuter!DC64","v":0},{"$f":"Input_Commuter!BT64+Input_Commuter!DE64","v":0},{"$f":"Input_Commuter!BV64+Input_Commuter!DG64","v":0},{"$f":"Input_Commuter!AA64+Input_Commuter!AC64","v":0},{"$f":"Input_Commuter!AE64","v":0},{"$f":"Input_Commuter!AG64","v":0},{"$f":"Input_Commuter!AI64","v":0},{"$f":"Input_Commuter!AK64","v":0}]
[null,null,2044,null,null,null,null,null,null,null,null,null,null,null,null,null,null,null,null,null,null,null,null,null,null,null,null,null,null,null,null,null,null,null,null,null,null,null,null,null,null,null,null,null,null,null,null,null,null,null,null,null,null,null,null,null,null,null,null,null,null,null,null,null,null,null,null,null,null,null,null,null,null,null,null,null,null,null,{"$f":"Input_Commuter!BL65+Input_Commuter!BN65+Input_Commuter!CW65+Input_Commuter!CY65","v":0},{"$f":"Input_Commuter!BP65+Input_Commuter!DA65","v":0},{"$f":"Input_Commuter!BR65+Input_Commuter!DC65","v":0},{"$f":"Input_Commuter!BT65+Input_Commuter!DE65","v":0},{"$f":"Input_Commuter!BV65+Input_Commuter!DG65","v":0},{"$f":"Input_Commuter!AA65+Input_Commuter!AC65","v":0},{"$f":"Input_Commuter!AE65","v":0},{"$f":"Input_Commuter!AG65","v":0},{"$f":"Input_Commuter!AI65","v":0},{"$f":"Input_Commuter!AK65","v":0}]
[null,null,2045,null,null,null,null,null,null,null,null,null,null,null,null,null,null,null,null,null,null,null,null,null,null,null,null,null,null,null,null,null,null,null,null,null,null,null,null,null,null,null,null,null,null,null,null,null,null,null,null,null,null,null,null,null,null,null,null,null,null,null,null,null,null,null,null,null,null,null,null,null,null,null,null,null,null,null,{"$f":"Input_Commuter!BL66+Input_Commuter!BN66+Input_Commuter!CW66+Input_Commuter!CY66","v":0},{"$f":"Input_Commuter!BP66+Input_Commuter!DA66","v":0},{"$f":"Input_Commuter!BR66+Input_Commuter!DC66","v":0},{"$f":"Input_Commuter!BT66+Input_Commuter!DE66","v":0},{"$f":"Input_Commuter!BV66+Input_Commuter!DG66","v":0},{"$f":"Input_Commuter!AA66+Input_Commuter!AC66","v":0},{"$f":"Input_Commuter!AE66","v":0},{"$f":"Input_Commuter!AG66","v":0},{"$f":"Input_Commuter!AI66","v":0},{"$f":"Input_Commuter!AK66","v":0}]
[null,null,2046,null,null,null,null,null,null,null,null,null,null,null,null,null,null,null,null,null,null,null,null,null,null,null,null,null,null,null,null,null,null,null,null,null,null,null,null,null,null,null,null,null,null,null,null,null,null,null,null,null,null,null,null,null,null,null,null,null,null,null,null,null,null,null,null,null,null,null,null,null,null,null,null,null,null,null,{"$f":"Input_Commuter!BL67+Input_Commuter!BN67+Input_Commuter!CW67+Input_Commuter!CY67","v":0},{"$f":"Input_Commuter!BP67+Input_Commuter!DA67","v":0},{"$f":"Input_Commuter!BR67+Input_Commuter!DC67","v":0},{"$f":"Input_Commuter!BT67+Input_Commuter!DE67","v":0},{"$f":"Input_Commuter!BV67+Input_Commuter!DG67","v":0},{"$f":"Input_Commuter!AA67+Input_Commuter!AC67","v":0},{"$f":"Input_Commuter!AE67","v":0},{"$f":"Input_Commuter!AG67","v":0},{"$f":"Input_Commuter!AI67","v":0},{"$f":"Input_Commuter!AK67","v":0}]
[null,null,2047,null,null,null,null,null,null,null,null,null,null,null,null,null,null,null,null,null,null,null,null,null,null,null,null,null,null,null,null,null,null,null,null,null,null,null,null,null,null,null,null,null,null,null,null,null,null,null,null,null,null,null,null,null,null,null,null,null,null,null,null,null,null,null,null,null,null,null,null,null,null,null,null,null,null,null,{"$f":"Input_Commuter!BL68+Input_Commuter!BN68+Input_Commuter!CW68+Input_Commuter!CY68","v":0},{"$f":"Input_Commuter!BP68+Input_Commuter!DA68","v":0},{"$f":"Input_Commuter!BR68+Input_Commuter!DC68","v":0},{"$f":"Input_Commuter!BT68+Input_Commuter!DE68","v":0},{"$f":"Input_Commuter!BV68+Input_Commuter!DG68","v":0},{"$f":"Input_Commuter!AA68+Input_Commuter!AC68","v":0},{"$f":"Input_Commuter!AE68","v":0},{"$f":"Input_Commuter!AG68","v":0},{"$f":"Input_Commuter!AI68","v":0},{"$f":"Input_Commuter!AK68","v":0}]
[null,null,2048,null,null,null,null,null,null,null,null,null,null,null,null,null,null,null,null,null,null,null,null,null,null,null,null,null,null,null,null,null,null,null,null,null,null,null,null,null,null,null,null,null,null,null,null,null,null,null,null,null,null,null,null,null,null,null,null,null,null,null,null,null,null,null,null,null,null,null,null,null,null,null,null,null,null,null,{"$f":"Input_Commuter!BL69+Input_Commuter!BN69+Input_Commuter!CW69+Input_Commuter!CY69","v":0},{"$f":"Input_Commuter!BP69+Input_Commuter!DA69","v":0},{"$f":"Input_Commuter!BR69+Input_Commuter!DC69","v":0},{"$f":"Input_Commuter!BT69+Input_Commuter!DE69","v":0},{"$f":"Input_Commuter!BV69+Input_Commuter!DG69","v":0},{"$f":"Input_Commuter!AA69+Input_Commuter!AC69","v":0},{"$f":"Input_Commuter!AE69","v":0},{"$f":"Input_Commuter!AG69","v":0},{"$f":"Input_Commuter!AI69","v":0},{"$f":"Input_Commuter!AK69","v":0}]
[null,null,2049,null,null,null,null,null,null,null,null,null,null,null,null,null,null,null,null,null,null,null,null,null,null,null,null,null,null,null,null,null,null,null,null,null,null,null,null,null,null,null,null,null,null,null,null,null,null,null,null,null,null,null,null,null,null,null,null,null,null,null,null,null,null,null,null,null,null,null,null,null,null,null,null,null,null,null,{"$f":"Input_Commuter!BL70+Input_Commuter!BN70+Input_Commuter!CW70+Input_Commuter!CY70","v":0},{"$f":"Input_Commuter!BP70+Input_Commuter!DA70","v":0},{"$f":"Input_Commuter!BR70+Input_Commuter!DC70","v":0},{"$f":"Input_Commuter!BT70+Input_Commuter!DE70","v":0},{"$f":"Input_Commuter!BV70+Input_Commuter!DG70","v":0},{"$f":"Input_Commuter!AA70+Input_Commuter!AC70","v":0},{"$f":"Input_Commuter!AE70","v":0},{"$f":"Input_Commuter!AG70","v":0},{"$f":"Input_Commuter!AI70","v":0},{"$f":"Input_Commuter!AK70","v":0}]
[null,null,2050,null,null,null,null,null,null,null,null,null,null,null,null,null,null,null,null,null,null,null,null,null,null,null,null,null,null,null,null,null,null,null,null,null,null,null,null,null,null,null,null,null,null,null,null,null,null,null,null,null,null,null,null,null,null,null,null,null,null,null,null,null,null,null,null,null,null,null,null,null,null,null,null,null,null,null,{"$f":"Input_Commuter!BL71+Input_Commuter!BN71+Input_Commuter!CW71+Input_Commuter!CY71","v":0},{"$f":"Input_Commuter!BP71+Input_Commuter!DA71","v":0},{"$f":"Input_Commuter!BR71+Input_Commuter!DC71","v":0},{"$f":"Input_Commuter!BT71+Input_Commuter!DE71","v":0},{"$f":"Input_Commuter!BV71+Input_Commuter!DG71","v":0},{"$f":"Input_Commuter!AA71+Input_Commuter!AC71","v":0},{"$f":"Input_Commuter!AE71","v":0},{"$f":"Input_Commuter!AG71","v":0},{"$f":"Input_Commuter!AI71","v":0},{"$f":"Input_Commuter!AK71","v":0}]

{"sheet":"Input_Commuter","index":2,"n_rows":75,"n_cols":126,"rows_kept":75,"cut":false,"hidden":false,"merged":[[6,113,6,125],[7,113,7,125],[8,113,8,114],[8,115,8,116],[8,117,8,118],[8,119,8,120],[8,121,8,122],[8,123,8,125],[8,36,8,38],[7,39,7,41],[7,43,7,50],[7,100,7,112],[8,100,8,101],[7,51,7,57],[8,63,8,64],[8,65,8,66],[7,63,7,75],[8,67,8,68],[8,69,8,70],[8,71,8,72],[8,73,8,75],[8,102,8,103],[8,104,8,105],[8,106,8,107],[73,1,73,29],[74,1,74,29],[8,30,8,31],[8,32,8,33],[8,34,8,35],[8,26,8,27],[8,28,8,29],[7,2,7,4],[7,6,7,13],[7,14,7,20],[6,26,6,38],[7,26,7,38],[6,2,6,25],[7,21,7,25],[8,110,8,112],[7,58,7,62],[7,95,7,99],[8,108,8,109],[6,76,6,99],[6,100,6,112],[6,39,6,62],[7,76,7,78],[7,80,7,87],[7,88,7,94],[6,63,6,75]]}
[]
[null,"On this Worksheet: Estimates of commuter miles traveled for faculty, staff, and students."]
[null,"MODULE","Input"]
[null,"WORKSHEET","Commuter Traffic"]
[null,"UNIVERSITY"]
[]
[null,null,"STUDENTS",null,null,null,null,null,null,null,null,null,null,null,null,null,null,null,null,null,null,null,null,null,null,null,"Summary - Students",null,null,null,null,null,null,null,null,null,null,null,null,"FACULTY",null,null,null,null,null,null,null,null,null,null,null,null,null,null,null,null,null,null,null,null,null,null,null,"Summary - Faculty",null,null,null,null,null,null,null,null,null,null,null,null,"STAFF",null,null,null,null,null,null,null,null,null,null,null,null,null,null,null,null,null,null,null,null,null,null,null,"Summary - Staff",null,null,null,null,null,null,null,null,null,null,null,null,"Summary - Faculty and Staff"]
[null,null,"1) Trips / Week",null,null,"2) Weeks / Year  ","3) Trip Distribution (% Trips by Mode)",null,null,null,null,null,null,null,"4) Trip Distance (Miles per One-Way Trip for Each Mode)",null,null,null,null,null,null,"Fuel efficiency is in SIMAP",null,null,null,null,"Summary - Students",null,null,null,null,null,null,null,null,null,null,null,null,"1) Trips / Week",null,null,"2) Weeks / Year  ","3) Trip Distribution (% Trips by Mode)",null,null,null,null,null,null,null,"4) Trip Distance (Miles per One-Way Trip for Each Mode)",null,null,null,null,null,null,"Fuel Efficiencies Used in Calculations are in SIMAP",null,null,null,null,"Summary - Faculty",null,null,null,null,null,null,null,null,null,null,null,null,"1) Trips / Week",null,null,"2) Weeks / Year  ","3) Trip Distribution (% Trips by Mode)",null,null,null,null,null,null,null,"4) Trip Distance (Miles per One-Way Trip for Each Mode)",null,null,null,null,null,null,"Fuel efficiency used in calculation are already in SIMAP",null,null,null,null,"Summary - Staff",null,null,null,null,null,null,null,null,null,null,null,null,"Summary - Faculty and Staff"]
[null,"Fiscal Year","Students Commuters","One-Way Trips / Week","Total Commuter Trips / Week","Weeks / Year  ","Bike","Walk","Drive Alone","Carpool","Bus","Light Rail","Commuter Rail","Total","Bike","Walk","Drive Alone","Carpool","Bus","Light Rail","Commuter Rail",null,null,null,null,null,"Biking",null,"Walking",null,"Automobile Commuting",null,"Bus Commuting",null,"Light Rail Commuting",null,"Commuter Rail Commuting",null,null,"Faculty Commuters","One-Way Trips / Week","Total Commuter Trips / Week","Weeks / Year  ","Bike","Walk","Drive Alone","Carpool","Bus","Light Rail","Commuter Rail","Total","Bike","Walk","Drive Alone","Carpool","Bus","Light Rail","Commuter Rail",null,null,null,null,null,"Biking",null,"Walking",null,"Automobile Commuting",null,"Bus Commuting",null,"Light Rail Commuting",null,"Commuter Rail Commuting",null,null,"Staff Commuters","One-Way Trips / Week","Total Commuter Trips / Week","Weeks / Year  ","Bike","Walk","Drive Alone","Carpool","Bus","Light Rail","Commuter Rail","Total","Bike","Walk","Drive Alone","Carpool","Bus","Light Rail","Commuter Rail",null,null,null,null,null,"Biking",null,"Walking",null,"Automobile Commuting",null,"Bus Commuting",null,"Light Rail Commuting",null,"Commuter Rail Commuting",null,null,"Biking",null,"Walking",null,"Automobile Commuting",null,"Bus Commuting",null,"Light Rail Commuting",null,"Commuter Rail Commuting"]
[null,null,"#","#","#","#","%","%","%","%","%","%","%","%","Passenger Miles","Passenger Miles","Vehicle Miles","Vehicle Miles","Passenger Miles","Passenger Miles","Passenger Miles",null,null,null,null,null,"Total Miles","Fuel Consumed","Total Miles","Fuel Consumed","Total Miles","Gallons Gasoline","Total Miles","Gallons Diesel","Total Miles","kWh","Total Miles","Gallons Diesel","kWh","#","#","#","#","%","%","%","%","%","%","%","%","Passenger Miles","Passenger Miles","Vehicle Miles","Vehicle Miles","Passenger Miles","Passenger Miles","Passenger Miles",null,null,null,null,null,"Total Miles","Fuel Consumed","Total Miles","Fuel Consumed","Total Miles","Gallons Gasoline","Total Miles","Gallons Diesel","Total Miles","kWh","Total Miles","Gallons Diesel","kWh","#","#","#","#","%","%","%","%","%","%","%","%","Passenger Miles","Passenger Miles","Vehicle Miles","Vehicle Miles","Passenger Miles","Passenger Miles","Passenger Miles",null,null,null,null,null,"Total Miles","Fuel Consumed","Total Miles","Fuel Consumed","Total Miles","Gallons Gasoline","Total Miles","Gallons Diesel","Total Miles","kWh","Total Miles","Gallons Diesel","kWh","Total Miles","Fuel Consumed","Total Miles","Fuel Consumed","Total Miles","Gallons Gasoline","Total Miles","Gallons Diesel","Total Miles","kWh","Total Miles","Gallons Diesel","kWh"]
[null,{"$f":"Input!C11","v":1990},null,null,{"$f":"C11*D11","v":0},null,null,null,null,null,null,null,null,{"$f":"SUM(G11:M11)","v":0},null,null,null,null,null,null,null,null,null,null,null,null,{"$f":"E11*F11*G11*O11","v":0},{"$f":"0","v":0},{"$f":"E11*F11*H11*P11","v":0},{"$f":"0","v":0},{"$f":"((E11*F11*I11*Q11)+(E11*F11*J11*R11)/2)","v":0},{"$f":"AE11/V11","v":{"$error":"#DIV/0!"}},{"$f":"E11*F11*K11*S11","v":0},{"$f":"AG11/W11","v":{"$error":"#DIV/0!"}},{"$f":"E11*F11*L11*T11","v":0},{"$f":"AI11/X11","v":{"$error":"#DIV/0!"}},{"$f":"E11*F11*M11*U11","v":0},{"$f":"AK11/Y11","v":{"$error":"#DIV/0!"}},{"$f":"AK11/Z11","v":{"$error":"#DIV/0!"}},null,null,{"$f":"AN11*AO11","v":0},null,null,null,null,null,null,null,null,{"$f":"SUM(AR11:AX11)","v":0},null,null,null,null,null,null,null,null,null,null,null,null,{"$f":"AP11*AQ11*AR11*AZ11","v":0},{"$f":"0","v":0},{"$f":"AP11*AQ11*AS11*BA11","v":0},{"$f":"0","v":0},{"$f":"((AP11*AQ11*AT11*BB11)+(AP11*AQ11*AU11*BC11)/2)","v":0},{"$f":"BP11/BG11","v":{"$error":"#DIV/0!"}},{"$f":"AP11*AQ11*AV11*BD11","v":0},{"$f":"BR11/BH11","v":{"$error":"#DIV/0!"}},{"$f":"AP11*AQ11*AW11*BE11","v":0},{"$f":"BT11/BI11","v":{"$error":"#DIV/0!"}},{"$f":"AP11*AQ11*AX11*BF11","v":0},{"$f":"BV11/BJ11","v":{"$error":"#DIV/0!"}},{"$f":"BV11/BK11","v":{"$error":"#DIV/0!"}},null,null,{"$f":"BY11*BZ11","v":0},null,null,null,null,null,null,null,null,{"$f":"SUM(CC11:CI11)","v":0},null,null,null,null,null,null,null,null,null,null,null,null,{"$f":"CA11*CB11*CC11*CK11","v":0},{"$f":"0","v":0},{"$f":"CA11*CB11*CD11*CL11","v":0},{"$f":"0","v":0},{"$f":"((CA11*CB11*CE11*CM11)+(CA11*CB11*CF11*CN11)/2)","v":0},{"$f":"DA11/CR11","v":{"$error":"#DIV/0!"}},{"$f":"CA11*CB11*CG11*CO11","v":0},{"$f":"DC11/CS11","v":{"$error":"#DIV/0!"}},{"$f":"CA11*CB11*CH11*CP11","v":0},{"$f":"DE11/CT11","v":{"$error":"#DIV/0!"}},{"$f":"CA11*CB11*CI11*CQ11","v":0},{"$f":"DG11/CU11","v":{"$error":"#DIV/0!"}},{"$f":"DG11/CV11","v":{"$error":"#DIV/0!"}},{"$f":"BL11+CW11","v":0},{"$f":"BM11+CX11","v":0},0,0,0,{"$error":"#DIV/0!"},0,{"$error":"#DIV/0!"},0,{"$error":"#DIV/0!"},0,{"$error":"#DIV/0!"},{"$error":"#DIV/0!"}]
[null,{"$f":"Input!C12","v":1991},null,null,{"$f":"C12*D12","v":0},null,null,null,null,null,null,null,null,{"$f":"SUM(G12:M12)","v":0},null,null,null,null,null,null,null,null,null,null,null,null,{"$f":"E12*F12*G12*O12","v":0},{"$f":"0","v":0},{"$f":"E12*F12*H12*P12","v":0},{"$f":"0","v":0},{"$f":"((E12*F12*I12*Q12)+(E12*F12*J12*R12)/2)","v":0},{"$f":"AE12/V12","v":{"$error":"#DIV/0!"}},{"$f":"E12*F12*K12*S12","v":0},{"$f":"AG12/W12","v":{"$error":"#DIV/0!"}},{"$f":"E12*F12*L12*T12","v":0},{"$f":"AI12/X12","v":{"$error":"#DIV/0!"}},{"$f":"E12*F12*M12*U12","v":0},{"$f":"AK12/Y12","v":{"$error":"#DIV/0!"}},{"$f":"AK12/Z12","v":{"$error":"#DIV/0!"}},null,null,{"$f":"AN12*AO12","v":0},null,null,null,null,null,null,null,null,{"$f":"SUM(AR12:AX12)","v":0},null,null,null,null,null,null,null,null,null,null,null,null,{"$f":"AP12*AQ12*AR12*AZ12","v":0},{"$f":"0","v":0},{"$f":"AP12*AQ12*AS12*BA12","v":0},{"$f":"0","v":0},{"$f":"((AP12*AQ12*AT12*BB12)+(AP12*AQ12*AU12*BC12)/2)","v":0},{"$f":"BP12/BG12","v":{"$error":"#DIV/0!"}},{"$f":"AP12*AQ12*AV12*BD12","v":0},{"$f":"BR12/BH12","v":{"$error":"#DIV/0!"}},{"$f":"AP12*AQ12*AW12*BE12","v":0},{"$f":"BT12/BI12","v":{"$error":"#DIV/0!"}},{"$f":"AP12*AQ12*AX12*BF12","v":0},{"$f":"BV12/BJ12","v":{"$error":"#DIV/0!"}},{"$f":"BV12/BK12","v":{"$error":"#DIV/0!"}},null,null,{"$f":"BY12*BZ12","v":0},null,null,null,null,null,null,null,null,{"$f":"SUM(CC12:CI12)","v":0},null,null,null,null,null,null,null,null,null,null,null,null,{"$f":"CA12*CB12*CC12*CK12","v":0},{"$f":"0","v":0},{"$f":"CA12*CB12*CD12*CL12","v":0},{"$f":"0","v":0},{"$f":"((CA12*CB12*CE12*CM12)+(CA12*CB12*CF12*CN12)/2)","v":0},{"$f":"DA12/CR12","v":{"$error":"#DIV/0!"}},{"$f":"CA12*CB12*CG12*CO12","v":0},{"$f":"DC12/CS12","v":{"$error":"#DIV/0!"}},{"$f":"CA12*CB12*CH12*CP12","v":0},{"$f":"DE12/CT12","v":{"$error":"#DIV/0!"}},{"$f":"CA12*CB12*CI12*CQ12","v":0},{"$f":"DG12/CU12","v":{"$error":"#DIV/0!"}},{"$f":"DG12/CV12","v":{"$error":"#DIV/0!"}},{"$f":"BL12+CW12","v":0},{"$f":"BM12+CX12","v":0},{"$f":"BN12+CY12","v":0},{"$f":"BO12+CZ12","v":0},{"$f":"BP12+DA12","v":0},{"$f":"BQ12+DB12","v":{"$error":"#DIV/0!"}},{"$f":"BR12+DC12","v":0},{"$f":"BS12+DD12","v":{"$error":"#DIV/0!"}},{"$f":"BT12+DE12","v":0},{"$f":"BU12+DF12","v":{"$error":"#DIV/0!"}},{"$f":"BV12+DG12","v":0},{"$f":"BW12+DH12","v":{"$error":"#DIV/0!"}},{"$f":"BX12+DI12","v":{"$error":"#DIV/0!"}}]
[null,{"$f":"Input!C13","v":1992},null,null,0,null,null,null,null,null,null,null,null,0,null,null,null,null,null,null,null,null,null,null,null,null,0,{"$f":"0","v":0},0,{"$f":"0","v":0},0,{"$error":"#DIV/0!"},0,{"$error":"#DIV/0!"},0,{"$error":"#DIV/0!"},0,{"$error":"#DIV/0!"},{"$error":"#DIV/0!"},null,null,0,null,null,null,null,null,null,null,null,0,null,null,null,null,null,null,null,null,null,null,null,null,0,{"$f":"0","v":0},0,{"$f":"0","v":0},0,{"$error":"#DIV/0!"},0,{"$error":"#DIV/0!"},0,{"$error":"#DIV/0!"},0,{"$error":"#DIV/0!"},{"$error":"#DIV/0!"},null,null,0,null,null,null,null,null,null,null,null,0,null,null,null,null,null,null,null,null,null,null,null,null,0,{"$f":"0","v":0},0,{"$f":"0","v":0},0,{"$error":"#DIV/0!"},0,{"$error":"#DIV/0!"},0,{"$error":"#DIV/0!"},0,{"$error":"#DIV/0!"},{"$error":"#DIV/0!"},0,0,0,0,0,{"$error":"#DIV/0!"},0,{"$error":"#DIV/0!"},0,{"$error":"#DIV/0!"},0,{"$error":"#DIV/0!"},{"$error":"#DIV/0!"}]
[null,{"$f":"Input!C14","v":1993},null,null,0,null,null,null,null,null,null,null,null,0,null,null,null,null,null,null,null,null,null,null,null,null,0,{"$f":"0","v":0},0,{"$f":"0","v":0},0,{"$error":"#DIV/0!"},0,{"$error":"#DIV/0!"},0,{"$error":"#DIV/0!"},0,{"$error":"#DIV/0!"},{"$error":"#DIV/0!"},null,null,0,null,null,null,null,null,null,null,null,0,null,null,null,null,null,null,null,null,null,null,null,null,0,{"$f":"0","v":0},0,{"$f":"0","v":0},0,{"$error":"#DIV/0!"},0,{"$error":"#DIV/0!"},0,{"$error":"#DIV/0!"},0,{"$error":"#DIV/0!"},{"$error":"#DIV/0!"},null,null,0,null,null,null,null,null,null,null,null,0,null,null,null,null,null,null,null,null,null,null,null,null,0,{"$f":"0","v":0},0,{"$f":"0","v":0},0,{"$error":"#DIV/0!"},0,{"$error":"#DIV/0!"},0,{"$error":"#DIV/0!"},0,{"$error":"#DIV/0!"},{"$error":"#DIV/0!"},0,0,0,0,0,{"$error":"#DIV/0!"},0,{"$error":"#DIV/0!"},0,{"$error":"#DIV/0!"},0,{"$error":"#DIV/0!"},{"$error":"#DIV/0!"}]
[null,{"$f":"Input!C15","v":1994},null,null,0,null,null,null,null,null,null,null,null,0,null,null,null,null,null,null,null,null,null,null,null,null,0,{"$f":"0","v":0},0,{"$f":"0","v":0},0,{"$error":"#DIV/0!"},0,{"$error":"#DIV/0!"},0,{"$error":"#DIV/0!"},0,{"$error":"#DIV/0!"},{"$error":"#DIV/0!"},null,null,0,null,null,null,null,null,null,null,null,0,null,null,null,null,null,null,null,null,null,null,null,null,0,{"$f":"0","v":0},0,{"$f":"0","v":0},0,{"$error":"#DIV/0!"},0,{"$error":"#DIV/0!"},0,{"$error":"#DIV/0!"},0,{"$error":"#DIV/0!"},{"$error":"#DIV/0!"},null,null,0,null,null,null,null,null,null,null,null,0,null,null,null,null,null,null,null,null,null,null,null,null,0,{"$f":"0","v":0},0,{"$f":"0","v":0},0,{"$error":"#DIV/0!"},0,{"$error":"#DIV/0!"},0,{"$error":"#DIV/0!"},0,{"$error":"#DIV/0!"},{"$error":"#DIV/0!"},0,0,0,0,0,{"$error":"#DIV/0!"},0,{"$error":"#DIV/0!"},0,{"$error":"#DIV/0!"},0,{"$error":"#DIV/0!"},{"$error":"#DIV/0!"}]
[null,{"$f":"Input!C16","v":1995},null,null,0,null,null,null,null,null,null,null,null,0,null,null,null,null,null,null,null,null,null,null,null,null,0,{"$f":"0","v":0},0,{"$f":"0","v":0},0,{"$error":"#DIV/0!"},0,{"$error":"#DIV/0!"},0,{"$error":"#DIV/0!"},0,{"$error":"#DIV/0!"},{"$error":"#DIV/0!"},null,null,0,null,null,null,null,null,null,null,null,0,null,null,null,null,null,null,null,null,null,null,null,null,0,{"$f":"0","v":0},0,{"$f":"0","v":0},0,{"$error":"#DIV/0!"},0,{"$error":"#DIV/0!"},0,{"$error":"#DIV/0!"},0,{"$error":"#DIV/0!"},{"$error":"#DIV/0!"},null,null,0,null,null,null,null,null,null,null,null,0,null,null,null,null,null,null,null,null,null,null,null,null,0,{"$f":"0","v":0},0,{"$f":"0","v":0},0,{"$error":"#DIV/0!"},0,{"$error":"#DIV/0!"},0,{"$error":"#DIV/0!"},0,{"$error":"#DIV/0!"},{"$error":"#DIV/0!"},0,0,0,0,0,{"$error":"#DIV/0!"},0,{"$error":"#DIV/0!"},0,{"$error":"#DIV/0!"},0,{"$error":"#DIV/0!"},{"$error":"#DIV/0!"}]
[null,{"$f":"Input!C17","v":1996},null,null,0,null,null,null,null,null,null,null,null,0,null,null,null,null,null,null,null,null,null,null,null,null,0,{"$f":"0","v":0},0,{"$f":"0","v":0},0,{"$error":"#DIV/0!"},0,{"$error":"#DIV/0!"},0,{"$error":"#DIV/0!"},0,{"$error":"#DIV/0!"},{"$error":"#DIV/0!"},null,null,0,null,null,null,null,null,null,null,null,0,null,null,null,null,null,null,null,null,null,null,null,null,0,{"$f":"0","v":0},0,{"$f":"0","v":0},0,{"$error":"#DIV/0!"},0,{"$error":"#DIV/0!"},0,{"$error":"#DIV/0!"},0,{"$error":"#DIV/0!"},{"$error":"#DIV/0!"},null,null,0,null,null,null,null,null,null,null,null,0,null,null,null,null,null,null,null,null,null,null,null,null,0,{"$f":"0","v":0},0,{"$f":"0","v":0},0,{"$error":"#DIV/0!"},0,{"$error":"#DIV/0!"},0,{"$error":"#DIV/0!"},0,{"$error":"#DIV/0!"},{"$error":"#DIV/0!"},0,0,0,0,0,{"$error":"#DIV/0!"},0,{"$error":"#DIV/0!"},0,{"$error":"#DIV/0!"},0,{"$error":"#DIV/0!"},{"$error":"#DIV/0!"}]
[null,{"$f":"Input!C18","v":1997},null,null,0,null,null,null,null,null,null,null,null,0,null,null,null,null,null,null,null,null,null,null,null,null,0,{"$f":"0","v":0},0,{"$f":"0","v":0},0,{"$error":"#DIV/0!"},0,{"$error":"#DIV/0!"},0,{"$error":"#DIV/0!"},0,{"$error":"#DIV/0!"},{"$error":"#DIV/0!"},null,null,0,null,null,null,null,null,null,null,null,0,null,null,null,null,null,null,null,null,null,null,null,null,0,{"$f":"0","v":0},0,{"$f":"0","v":0},0,{"$error":"#DIV/0!"},0,{"$error":"#DIV/0!"},0,{"$error":"#DIV/0!"},0,{"$error":"#DIV/0!"},{"$error":"#DIV/0!"},null,null,0,null,null,null,null,null,null,null,null,0,null,null,null,null,null,null,null,null,null,null,null,null,0,{"$f":"0","v":0},0,{"$f":"0","v":0},0,{"$error":"#DIV/0!"},0,{"$error":"#DIV/0!"},0,{"$error":"#DIV/0!"},0,{"$error":"#DIV/0!"},{"$error":"#DIV/0!"},0,0,0,0,0,{"$error":"#DIV/0!"},0,{"$error":"#DIV/0!"},0,{"$error":"#DIV/0!"},0,{"$error":"#DIV/0!"},{"$error":"#DIV/0!"}]
[null,{"$f":"Input!C19","v":1998},null,null,0,null,null,null,null,null,null,null,null,0,null,null,null,null,null,null,null,null,null,null,null,null,0,{"$f":"0","v":0},0,{"$f":"0","v":0},0,{"$error":"#DIV/0!"},0,{"$error":"#DIV/0!"},0,{"$error":"#DIV/0!"},0,{"$error":"#DIV/0!"},{"$error":"#DIV/0!"},null,null,0,null,null,null,null,null,null,null,null,0,null,null,null,null,null,null,null,null,null,null,null,null,0,{"$f":"0","v":0},0,{"$f":"0","v":0},0,{"$error":"#DIV/0!"},0,{"$error":"#DIV/0!"},0,{"$error":"#DIV/0!"},0,{"$error":"#DIV/0!"},{"$error":"#DIV/0!"},null,null,0,null,null,null,null,null,null,null,null,0,null,null,null,null,null,null,null,null,null,null,null,null,0,{"$f":"0","v":0},0,{"$f":"0","v":0},0,{"$error":"#DIV/0!"},0,{"$error":"#DIV/0!"},0,{"$error":"#DIV/0!"},0,{"$error":"#DIV/0!"},{"$error":"#DIV/0!"},0,0,0,0,0,{"$error":"#DIV/0!"},0,{"$error":"#DIV/0!"},0,{"$error":"#DIV/0!"},0,{"$error":"#DIV/0!"},{"$error":"#DIV/0!"}]
[null,{"$f":"Input!C20","v":1999},null,null,0,null,null,null,null,null,null,null,null,0,null,null,null,null,null,null,null,null,null,null,null,null,0,{"$f":"0","v":0},0,{"$f":"0","v":0},0,{"$error":"#DIV/0!"},0,{"$error":"#DIV/0!"},0,{"$error":"#DIV/0!"},0,{"$error":"#DIV/0!"},{"$error":"#DIV/0!"},null,null,0,null,null,null,null,null,null,null,null,0,null,null,null,null,null,null,null,null,null,null,null,null,0,{"$f":"0","v":0},0,{"$f":"0","v":0},0,{"$error":"#DIV/0!"},0,{"$error":"#DIV/0!"},0,{"$error":"#DIV/0!"},0,{"$error":"#DIV/0!"},{"$error":"#DIV/0!"},null,null,0,null,null,null,null,null,null,null,null,0,null,null,null,null,null,null,null,null,null,null,null,null,0,{"$f":"0","v":0},0,{"$f":"0","v":0},0,{"$error":"#DIV/0!"},0,{"$error":"#DIV/0!"},0,{"$error":"#DIV/0!"},0,{"$error":"#DIV/0!"},{"$error":"#DIV/0!"},0,0,0,0,0,{"$error":"#DIV/0!"},0,{"$error":"#DIV/0!"},0,{"$error":"#DIV/0!"},0,{"$error":"#DIV/0!"},{"$error":"#DIV/0!"}]
[null,{"$f":"Input!C21","v":2000},null,null,0,null,null,null,null,null,null,null,null,0,null,null,null,null,null,null,null,null,null,null,null,null,0,{"$f":"0","v":0},0,{"$f":"0","v":0},0,{"$error":"#DIV/0!"},0,{"$error":"#DIV/0!"},0,{"$error":"#DIV/0!"},0,{"$error":"#DIV/0!"},{"$error":"#DIV/0!"},null,null,0,null,null,null,null,null,null,null,null,0,null,null,null,null,null,null,null,null,null,null,null,null,0,{"$f":"0","v":0},0,{"$f":"0","v":0},0,{"$error":"#DIV/0!"},0,{"$error":"#DIV/0!"},0,{"$error":"#DIV/0!"},0,{"$error":"#DIV/0!"},{"$error":"#DIV/0!"},null,null,0,null,null,null,null,null,null,null,null,0,null,null,null,null,null,null,null,null,null,null,null,null,0,{"$f":"0","v":0},0,{"$f":"0","v":0},0,{"$error":"#DIV/0!"},0,{"$error":"#DIV/0!"},0,{"$error":"#DIV/0!"},0,{"$error":"#DIV/0!"},{"$error":"#DIV/0!"},0,0,0,0,0,{"$error":"#DIV/0!"},0,{"$error":"#DIV/0!"},0,{"$error":"#DIV/0!"},0,{"$error":"#DIV/0!"},{"$error":"#DIV/0!"}]
[null,{"$f":"Input!C22","v":2001},null,null,0,null,null,null,null,null,null,null,null,0,null,null,null,null,null,null,null,null,null,null,null,null,0,{"$f":"0","v":0},0,{"$f":"0","v":0},0,{"$error":"#DIV/0!"},0,{"$error":"#DIV/0!"},0,{"$error":"#DIV/0!"},0,{"$error":"#DIV/0!"},{"$error":"#DIV/0!"},null,null,0,null,null,null,null,null,null,null,null,0,null,null,null,null,null,null,null,null,null,null,null,null,0,{"$f":"0","v":0},0,{"$f":"0","v":0},0,{"$error":"#DIV/0!"},0,{"$error":"#DIV/0!"},0,{"$error":"#DIV/0!"},0,{"$error":"#DIV/0!"},{"$error":"#DIV/0!"},null,null,0,null,null,null,null,null,null,null,null,0,null,null,null,null,null,null,null,null,null,null,null,null,0,{"$f":"0","v":0},0,{"$f":"0","v":0},0,{"$error":"#DIV/0!"},0,{"$error":"#DIV/0!"},0,{"$error":"#DIV/0!"},0,{"$error":"#DIV/0!"},{"$error":"#DIV/0!"},0,0,0,0,0,{"$error":"#DIV/0!"},0,{"$error":"#DIV/0!"},0,{"$error":"#DIV/0!"},0,{"$error":"#DIV/0!"},{"$error":"#DIV/0!"}]
[null,{"$f":"Input!C23","v":2002},null,null,0,null,null,null,null,null,null,null,null,0,null,null,null,null,null,null,null,null,null,null,null,null,0,{"$f":"0","v":0},0,{"$f":"0","v":0},0,{"$error":"#DIV/0!"},0,{"$error":"#DIV/0!"},0,{"$error":"#DIV/0!"},0,{"$error":"#DIV/0!"},{"$error":"#DIV/0!"},null,null,0,null,null,null,null,null,null,null,null,0,null,null,null,null,null,null,null,null,null,null,null,null,0,{"$f":"0","v":0},0,{"$f":"0","v":0},0,{"$error":"#DIV/0!"},0,{"$error":"#DIV/0!"},0,{"$error":"#DIV/0!"},0,{"$error":"#DIV/0!"},{"$error":"#DIV/0!"},null,null,0,null,null,null,null,null,null,null,null,0,null,null,null,null,null,null,null,null,null,null,null,null,0,{"$f":"0","v":0},0,{"$f":"0","v":0},0,{"$error":"#DIV/0!"},0,{"$error":"#DIV/0!"},0,{"$error":"#DIV/0!"},0,{"$error":"#DIV/0!"},{"$error":"#DIV/0!"},0,0,0,0,0,{"$error":"#DIV/0!"},0,{"$error":"#DIV/0!"},0,{"$error":"#DIV/0!"},0,{"$error":"#DIV/0!"},{"$error":"#DIV/0!"}]
[null,{"$f":"Input!C24","v":2003},null,null,0,null,null,null,null,null,null,null,null,0,null,null,null,null,null,null,null,null,null,null,null,null,0,{"$f":"0","v":0},0,{"$f":"0","v":0},0,{"$error":"#DIV/0!"},0,{"$error":"#DIV/0!"},0,{"$error":"#DIV/0!"},0,{"$error":"#DIV/0!"},{"$error":"#DIV/0!"},null,null,0,null,null,null,null,null,null,null,null,0,null,null,null,null,null,null,null,null,null,null,null,null,0,{"$f":"0","v":0},0,{"$f":"0","v":0},0,{"$error":"#DIV/0!"},0,{"$error":"#DIV/0!"},0,{"$error":"#DIV/0!"},0,{"$error":"#DIV/0!"},{"$error":"#DIV/0!"},null,null,0,null,null,null,null,null,null,null,null,0,null,null,null,null,null,null,null,null,null,null,null,null,0,{"$f":"0","v":0},0,{"$f":"0","v":0},0,{"$error":"#DIV/0!"},0,{"$error":"#DIV/0!"},0,{"$error":"#DIV/0!"},0,{"$error":"#DIV/0!"},{"$error":"#DIV/0!"},0,0,0,0,0,{"$error":"#DIV/0!"},0,{"$error":"#DIV/0!"},0,{"$error":"#DIV/0!"},0,{"$error":"#DIV/0!"},{"$error":"#DIV/0!"}]
[null,{"$f":"Input!C25","v":2004},null,null,0,null,null,null,null,null,null,null,null,0,null,null,null,null,null,null,null,null,null,null,null,null,0,{"$f":"0","v":0},0,{"$f":"0","v":0},0,{"$error":"#DIV/0!"},0,{"$error":"#DIV/0!"},0,{"$error":"#DIV/0!"},0,{"$error":"#DIV/0!"},{"$error":"#DIV/0!"},null,null,0,null,null,null,null,null,null,null,null,0,null,null,null,null,null,null,null,null,null,null,null,null,0,{"$f":"0","v":0},0,{"$f":"0","v":0},0,{"$error":"#DIV/0!"},0,{"$error":"#DIV/0!"},0,{"$error":"#DIV/0!"},0,{"$error":"#DIV/0!"},{"$error":"#DIV/0!"},null,null,0,null,null,null,null,null,null,null,null,0,null,null,null,null,null,null,null,null,null,null,null,null,0,{"$f":"0","v":0},0,{"$f":"0","v":0},0,{"$error":"#DIV/0!"},0,{"$error":"#DIV/0!"},0,{"$error":"#DIV/0!"},0,{"$error":"#DIV/0!"},{"$error":"#DIV/0!"},0,0,0,0,0,{"$error":"#DIV/0!"},0,{"$error":"#DIV/0!"},0,{"$error":"#DIV/0!"},0,{"$error":"#DIV/0!"},{"$error":"#DIV/0!"}]
[null,{"$f":"Input!C26","v":2005},null,null,0,null,null,null,null,null,null,null,null,0,null,null,null,null,null,null,null,null,null,null,null,null,0,{"$f":"0","v":0},0,{"$f":"0","v":0},0,{"$error":"#DIV/0!"},0,{"$error":"#DIV/0!"},0,{"$error":"#DIV/0!"},0,{"$error":"#DIV/0!"},{"$error":"#DIV/0!"},null,null,0,null,null,null,null,null,null,null,null,0,null,null,null,null,null,null,null,null,null,null,null,null,0,{"$f":"0","v":0},0,{"$f":"0","v":0},0,{"$error":"#DIV/0!"},0,{"$error":"#DIV/0!"},0,{"$error":"#DIV/0!"},0,{"$error":"#DIV/0!"},{"$error":"#DIV/0!"},null,null,0,null,null,null,null,null,null,null,null,0,null,null,null,null,null,null,null,null,null,null,null,null,0,{"$f":"0","v":0},0,{"$f":"0","v":0},0,{"$error":"#DIV/0!"},0,{"$error":"#DIV/0!"},0,{"$error":"#DIV/0!"},0,{"$error":"#DIV/0!"},{"$error":"#DIV/0!"},0,0,0,0,0,{"$error":"#DIV/0!"},0,{"$error":"#DIV/0!"},0,{"$error":"#DIV/0!"},0,{"$error":"#DIV/0!"},{"$error":"#DIV/0!"}]
[null,{"$f":"Input!C27","v":2006},null,null,0,null,null,null,null,null,null,null,null,0,null,null,null,null,null,null,null,null,null,null,null,null,0,{"$f":"0","v":0},0,{"$f":"0","v":0},0,{"$error":"#DIV/0!"},0,{"$error":"#DIV/0!"},0,{"$error":"#DIV/0!"},0,{"$error":"#DIV/0!"},{"$error":"#DIV/0!"},null,null,0,null,null,null,null,null,null,null,null,0,null,null,null,null,null,null,null,null,null,null,null,null,0,{"$f":"0","v":0},0,{"$f":"0","v":0},0,{"$error":"#DIV/0!"},0,{"$error":"#DIV/0!"},0,{"$error":"#DIV/0!"},0,{"$error":"#DIV/0!"},{"$error":"#DIV/0!"},null,null,0,null,null,null,null,null,null,null,null,0,null,null,null,null,null,null,null,null,null,null,null,null,0,{"$f":"0","v":0},0,{"$f":"0","v":0},0,{"$error":"#DIV/0!"},0,{"$error":"#DIV/0!"},0,{"$error":"#DIV/0!"},0,{"$error":"#DIV/0!"},{"$error":"#DIV/0!"},0,0,0,0,0,{"$error":"#DIV/0!"},0,{"$error":"#DIV/0!"},0,{"$error":"#DIV/0!"},0,{"$error":"#DIV/0!"},{"$error":"#DIV/0!"}]
[null,{"$f":"Input!C28","v":2007},null,null,0,null,null,null,null,null,null,null,null,0,null,null,null,null,null,null,null,null,null,null,null,null,0,{"$f":"0","v":0},0,{"$f":"0","v":0},0,{"$error":"#DIV/0!"},0,{"$error":"#DIV/0!"},0,{"$error":"#DIV/0!"},0,{"$error":"#DIV/0!"},{"$error":"#DIV/0!"},null,null,0,null,null,null,null,null,null,null,null,0,null,null,null,null,null,null,null,null,null,null,null,null,0,{"$f":"0","v":0},0,{"$f":"0","v":0},0,{"$error":"#DIV/0!"},0,{"$error":"#DIV/0!"},0,{"$error":"#DIV/0!"},0,{"$error":"#DIV/0!"},{"$error":"#DIV/0!"},null,null,0,null,null,null,null,null,null,null,null,0,null,null,null,null,null,null,null,null,null,null,null,null,0,{"$f":"0","v":0},0,{"$f":"0","v":0},0,{"$error":"#DIV/0!"},0,{"$error":"#DIV/0!"},0,{"$error":"#DIV/0!"},0,{"$error":"#DIV/0!"},{"$error":"#DIV/0!"},0,0,0,0,0,{"$error":"#DIV/0!"},0,{"$error":"#DIV/0!"},0,{"$error":"#DIV/0!"},0,{"$error":"#DIV/0!"},{"$error":"#DIV/0!"}]
[null,{"$f":"Input!C29","v":2008},null,null,0,null,null,null,null,null,null,null,null,0,null,null,null,null,null,null,null,null,null,null,null,null,0,{"$f":"0","v":0},0,{"$f":"0","v":0},0,{"$error":"#DIV/0!"},0,{"$error":"#DIV/0!"},0,{"$error":"#DIV/0!"},0,{"$error":"#DIV/0!"},{"$error":"#DIV/0!"},null,null,0,null,null,null,null,null,null,null,null,0,null,null,null,null,null,null,null,null,null,null,null,null,0,{"$f":"0","v":0},0,{"$f":"0","v":0},0,{"$error":"#DIV/0!"},0,{"$error":"#DIV/0!"},0,{"$error":"#DIV/0!"},0,{"$error":"#DIV/0!"},{"$error":"#DIV/0!"},null,null,0,null,null,null,null,null,null,null,null,0,null,null,null,null,null,null,null,null,null,null,null,null,0,{"$f":"0","v":0},0,{"$f":"0","v":0},0,{"$error":"#DIV/0!"},0,{"$error":"#DIV/0!"},0,{"$error":"#DIV/0!"},0,{"$error":"#DIV/0!"},{"$error":"#DIV/0!"},0,0,0,0,0,{"$error":"#DIV/0!"},0,{"$error":"#DIV/0!"},0,{"$error":"#DIV/0!"},0,{"$error":"#DIV/0!"},{"$error":"#DIV/0!"}]
[null,{"$f":"Input!C30","v":2009},null,null,0,null,null,null,null,null,null,null,null,0,null,null,null,null,null,null,null,null,null,null,null,null,0,{"$f":"0","v":0},0,{"$f":"0","v":0},0,{"$error":"#DIV/0!"},0,{"$error":"#DIV/0!"},0,{"$error":"#DIV/0!"},0,{"$error":"#DIV/0!"},{"$error":"#DIV/0!"},null,null,0,null,null,null,null,null,null,null,null,0,null,null,null,null,null,null,null,null,null,null,null,null,0,{"$f":"0","v":0},0,{"$f":"0","v":0},0,{"$error":"#DIV/0!"},0,{"$error":"#DIV/0!"},0,{"$error":"#DIV/0!"},0,{"$error":"#DIV/0!"},{"$error":"#DIV/0!"},null,null,0,null,null,null,null,null,null,null,null,0,null,null,null,null,null,null,null,null,null,null,null,null,0,{"$f":"0","v":0},0,{"$f":"0","v":0},0,{"$error":"#DIV/0!"},0,{"$error":"#DIV/0!"},0,{"$error":"#DIV/0!"},0,{"$error":"#DIV/0!"},{"$error":"#DIV/0!"},0,0,0,0,0,{"$error":"#DIV/0!"},0,{"$error":"#DIV/0!"},0,{"$error":"#DIV/0!"},0,{"$error":"#DIV/0!"},{"$error":"#DIV/0!"}]
[null,{"$f":"Input!C31","v":2010},null,null,0,null,null,null,null,null,null,null,null,0,null,null,null,null,null,null,null,null,null,null,null,null,0,{"$f":"0","v":0},0,{"$f":"0","v":0},0,{"$error":"#DIV/0!"},0,{"$error":"#DIV/0!"},0,{"$error":"#DIV/0!"},0,{"$error":"#DIV/0!"},{"$error":"#DIV/0!"},null,null,0,null,null,null,null,null,null,null,null,0,null,null,null,null,null,null,null,null,null,null,null,null,0,{"$f":"0","v":0},0,{"$f":"0","v":0},0,{"$error":"#DIV/0!"},0,{"$error":"#DIV/0!"},0,{"$error":"#DIV/0!"},0,{"$error":"#DIV/0!"},{"$error":"#DIV/0!"},null,null,0,null,null,null,null,null,null,null,null,0,null,null,null,null,null,null,null,null,null,null,null,null,0,{"$f":"0","v":0},0,{"$f":"0","v":0},0,{"$error":"#DIV/0!"},0,{"$error":"#DIV/0!"},0,{"$error":"#DIV/0!"},0,{"$error":"#DIV/0!"},{"$error":"#DIV/0!"},0,0,0,0,0,{"$error":"#DIV/0!"},0,{"$error":"#DIV/0!"},0,{"$error":"#DIV/0!"},0,{"$error":"#DIV/0!"},{"$error":"#DIV/0!"}]
[null,{"$f":"Input!C32","v":2011},null,null,0,null,null,null,null,null,null,null,null,0,null,null,null,null,null,null,null,null,null,null,null,null,0,{"$f":"0","v":0},0,{"$f":"0","v":0},0,{"$error":"#DIV/0!"},0,{"$error":"#DIV/0!"},0,{"$error":"#DIV/0!"},0,{"$error":"#DIV/0!"},{"$error":"#DIV/0!"},null,null,0,null,null,null,null,null,null,null,null,0,null,null,null,null,null,null,null,null,null,null,null,null,0,{"$f":"0","v":0},0,{"$f":"0","v":0},0,{"$error":"#DIV/0!"},0,{"$error":"#DIV/0!"},0,{"$error":"#DIV/0!"},0,{"$error":"#DIV/0!"},{"$error":"#DIV/0!"},null,null,0,null,null,null,null,null,null,null,null,0,null,null,null,null,null,null,null,null,null,null,null,null,0,{"$f":"0","v":0},0,{"$f":"0","v":0},0,{"$error":"#DIV/0!"},0,{"$error":"#DIV/0!"},0,{"$error":"#DIV/0!"},0,{"$error":"#DIV/0!"},{"$error":"#DIV/0!"},0,0,0,0,0,{"$error":"#DIV/0!"},0,{"$error":"#DIV/0!"},0,{"$error":"#DIV/0!"},0,{"$error":"#DIV/0!"},{"$error":"#DIV/0!"}]
[null,{"$f":"Input!C33","v":2012},null,null,0,null,null,null,null,null,null,null,null,0,null,null,null,null,null,null,null,null,null,null,null,null,0,{"$f":"0","v":0},0,{"$f":"0","v":0},0,{"$error":"#DIV/0!"},0,{"$error":"#DIV/0!"},0,{"$error":"#DIV/0!"},0,{"$error":"#DIV/0!"},{"$error":"#DIV/0!"},null,null,0,null,null,null,null,null,null,null,null,0,null,null,null,null,null,null,null,null,null,null,null,null,0,{"$f":"0","v":0},0,{"$f":"0","v":0},0,{"$error":"#DIV/0!"},0,{"$error":"#DIV/0!"},0,{"$error":"#DIV/0!"},0,{"$error":"#DIV/0!"},{"$error":"#DIV/0!"},null,null,0,null,null,null,null,null,null,null,null,0,null,null,null,null,null,null,null,null,null,null,null,null,0,{"$f":"0","v":0},0,{"$f":"0","v":0},0,{"$error":"#DIV/0!"},0,{"$error":"#DIV/0!"},0,{"$error":"#DIV/0!"},0,{"$error":"#DIV/0!"},{"$error":"#DIV/0!"},0,0,0,0,0,{"$error":"#DIV/0!"},0,{"$error":"#DIV/0!"},0,{"$error":"#DIV/0!"},0,{"$error":"#DIV/0!"},{"$error":"#DIV/0!"}]
[null,{"$f":"Input!C34","v":2013},null,null,0,null,null,null,null,null,null,null,null,0,null,null,null,null,null,null,null,null,null,null,null,null,0,{"$f":"0","v":0},0,{"$f":"0","v":0},0,{"$error":"#DIV/0!"},0,{"$error":"#DIV/0!"},0,{"$error":"#DIV/0!"},0,{"$error":"#DIV/0!"},{"$error":"#DIV/0!"},null,null,0,null,null,null,null,null,null,null,null,0,null,null,null,null,null,null,null,null,null,null,null,null,0,{"$f":"0","v":0},0,{"$f":"0","v":0},0,{"$error":"#DIV/0!"},0,{"$error":"#DIV/0!"},0,{"$error":"#DIV/0!"},0,{"$error":"#DIV/0!"},{"$error":"#DIV/0!"},null,null,0,null,null,null,null,null,null,null,null,0,null,null,null,null,null,null,null,null,null,null,null,null,0,{"$f":"0","v":0},0,{"$f":"0","v":0},0,{"$error":"#DIV/0!"},0,{"$error":"#DIV/0!"},0,{"$error":"#DIV/0!"},0,{"$error":"#DIV/0!"},{"$error":"#DIV/0!"},0,0,0,0,0,{"$error":"#DIV/0!"},0,{"$error":"#DIV/0!"},0,{"$error":"#DIV/0!"},0,{"$error":"#DIV/0!"},{"$error":"#DIV/0!"}]
[null,{"$f":"Input!C35","v":2014},20719,8,165752,34,0.01,0.18,0.42,0.04,0.33,0.02,0,1,2,1,10,10,10,3,0,24.170169641796043,31.931899920524913,2.659748288805476,116.67381974248927,6.051196438508625,{"$f":"E35*F35*G35*O35","v":112711.36},{"$f":"0","v":0},1014402.24,{"$f":"0","v":0},24796499.200000003,1025913.3290120101,18597374.400000002,582407.38716728042,338134.08,127130.10528972273,0,0,0,1771,10,17710,46,0.01,0.03,0.87,0.05,0.02,0.02,0,1,2,1,13,13,13,3,0,24.170169641796043,31.931899920524913,2.659748288805476,116.67381974248927,6.051196438508625,16293.2,{"$f":"0","v":0},24439.8,{"$f":"0","v":0},9478569.0999999996,392159.80857698538,211811.6,6633.2288566347897,48879.600000000006,18377.528507388346,0,0,0,5020,10,50200,46,0.01,0.03,0.87,0.05,0.02,0.02,0,1,2,1,13,13,13,3,0,24.170169641796043,31.931899920524913,2.659748288805476,116.67381974248927,6.051196438508625,46184,{"$f":"0","v":0},69276,{"$f":"0","v":0},26867542,1111599.2315395069,600392,18802.263613950676,138552,52092.147434833139,0,0,0,62477.2,0,93715.8,0,36346111.100000001,1503759.0401164922,812203.6,25435.492470585465,187431.6,70469.675942221482,0,0,0]
[null,{"$f":"Input!C36","v":2015},null,null,0,null,null,null,null,null,null,null,null,0,null,null,null,null,null,null,null,null,null,null,null,null,0,{"$f":"0","v":0},0,{"$f":"0","v":0},0,{"$error":"#DIV/0!"},0,{"$error":"#DIV/0!"},0,{"$error":"#DIV/0!"},0,{"$error":"#DIV/0!"},{"$error":"#DIV/0!"},null,null,0,null,null,null,null,null,null,null,null,0,null,null,null,null,null,null,null,null,null,null,null,null,0,{"$f":"0","v":0},0,{"$f":"0","v":0},0,{"$error":"#DIV/0!"},0,{"$error":"#DIV/0!"},0,{"$error":"#DIV/0!"},0,{"$error":"#DIV/0!"},{"$error":"#DIV/0!"},null,null,0,null,null,null,null,null,null,null,null,0,null,null,null,null,null,null,null,null,null,null,null,null,0,{"$f":"0","v":0},0,{"$f":"0","v":0},0,{"$error":"#DIV/0!"},0,{"$error":"#DIV/0!"},0,{"$error":"#DIV/0!"},0,{"$error":"#DIV/0!"},{"$error":"#DIV/0!"},0,0,0,0,0,{"$error":"#DIV/0!"},0,{"$error":"#DIV/0!"},0,{"$error":"#DIV/0!"},0,{"$error":"#DIV/0!"},{"$error":"#DIV/0!"}]
[null,{"$f":"Input!C37","v":2016},null,null,0,null,null,null,null,null,null,null,null,0,null,null,null,null,null,null,null,null,null,null,null,null,0,{"$f":"0","v":0},0,{"$f":"0","v":0},0,{"$error":"#DIV/0!"},0,{"$error":"#DIV/0!"},0,{"$error":"#DIV/0!"},0,{"$error":"#DIV/0!"},{"$error":"#DIV/0!"},null,null,0,null,null,null,null,null,null,null,null,0,null,null,null,null,null,null,null,null,null,null,null,null,0,{"$f":"0","v":0},0,{"$f":"0","v":0},0,{"$error":"#DIV/0!"},0,{"$error":"#DIV/0!"},0,{"$error":"#DIV/0!"},0,{"$error":"#DIV/0!"},{"$error":"#DIV/0!"},null,null,0,null,null,null,null,null,null,null,null,0,null,null,null,null,null,null,null,null,null,null,null,null,0,{"$f":"0","v":0},0,{"$f":"0","v":0},0,{"$error":"#DIV/0!"},0,{"$error":"#DIV/0!"},0,{"$error":"#DIV/0!"},0,{"$error":"#DIV/0!"},{"$error":"#DIV/0!"},0,0,0,0,0,{"$error":"#DIV/0!"},0,{"$error":"#DIV/0!"},0,{"$error":"#DIV/0!"},0,{"$error":"#DIV/0!"},{"$error":"#DIV/0!"}]
[null,2017,16858,8,134864,34,0.01,0.11,0.66,0.08,0.13,0.01,0,{"$f":"SUM(G38:M38)","v":1},2,1,10,10,10,3,0,24.170169641796043,31.931899920524913,2.659748288805476,116.67381974248927,6.051196438508625,91707.520000000004,{"$f":"0","v":0},504391.36,{"$f":"0","v":0},32097632,1327985.3834577755,5960988.7999999998,186678.17495470875,137561.28,51719.661059272781,0,0,0,1980,10,19800,46,0.01,0.01,0.86,0.05,0.05,0.02,0,1,2,1,13,13,13,3,0,24.170169641796043,31.931899920524913,2.659748288805476,116.67381974248927,6.051196438508625,18216,{"$f":"0","v":0},9108,{"$f":"0","v":0},10478754,433540.77175692265,592020,18540.080655190406,54648,20546.305163539764,0,0,0,{"$f":"8129-AN38","v":6149},10,61490,46,0.01,0.01,0.86,0.05,0.05,0.02,0,1,2,1,13,13,13,3,0,24.170169641796043,31.931899920524913,2.659748288805476,116.67381974248927,6.051196438508625,56570.8,{"$f":"0","v":0},28285.4,{"$f":"0","v":0},32542352.699999999,1346384.9522895543,1838551,57577.250479174647,169712.40000000002,63807.692146770714,0,0,0,74786.8,0,37393.4,0,43021106.700000003,1779925.7240464769,2430571,76117.331134365057,224360.40000000002,84353.997310310486,0,0,0]
[null,{"$f":"Input!C39","v":2018},null,null,0,null,null,null,null,null,null,null,null,0,null,null,null,null,null,null,null,null,null,null,null,null,0,{"$f":"0","v":0},0,{"$f":"0","v":0},0,{"$error":"#DIV/0!"},0,{"$error":"#DIV/0!"},0,{"$error":"#DIV/0!"},0,{"$error":"#DIV/0!"},{"$error":"#DIV/0!"},null,null,0,null,null,null,null,null,null,null,null,0,null,null,null,null,null,null,null,null,null,null,null,null,0,{"$f":"0","v":0},0,{"$f":"0","v":0},0,{"$error":"#DIV/0!"},0,{"$error":"#DIV/0!"},0,{"$error":"#DIV/0!"},0,{"$error":"#DIV/0!"},{"$error":"#DIV/0!"},null,null,0,null,null,null,null,null,null,null,null,0,null,null,null,null,null,null,null,null,null,null,null,null,0,{"$f":"0","v":0},0,{"$f":"0","v":0},0,{"$error":"#DIV/0!"},0,{"$error":"#DIV/0!"},0,{"$error":"#DIV/0!"},0,{"$error":"#DIV/0!"},{"$error":"#DIV/0!"},0,0,0,0,0,{"$error":"#DIV/0!"},0,{"$error":"#DIV/0!"},0,{"$error":"#DIV/0!"},0,{"$error":"#DIV/0!"},{"$error":"#DIV/0!"}]
[null,{"$f":"Input!C40","v":2019},null,null,0,null,null,null,null,null,null,null,null,0,null,null,null,null,null,null,null,null,null,null,null,null,0,{"$f":"0","v":0},0,{"$f":"0","v":0},0,{"$error":"#DIV/0!"},0,{"$error":"#DIV/0!"},0,{"$error":"#DIV/0!"},0,{"$error":"#DIV/0!"},{"$error":"#DIV/0!"},null,null,0,null,null,null,null,null,null,null,null,0,null,null,null,null,null,null,null,null,null,null,null,null,0,{"$f":"0","v":0},0,{"$f":"0","v":0},0,{"$error":"#DIV/0!"},0,{"$error":"#DIV/0!"},0,{"$error":"#DIV/0!"},0,{"$error":"#DIV/0!"},{"$error":"#DIV/0!"},null,null,0,null,null,null,null,null,null,null,null,0,null,null,null,null,null,null,null,null,null,null,null,null,0,{"$f":"0","v":0},0,{"$f":"0","v":0},0,{"$error":"#DIV/0!"},0,{"$error":"#DIV/0!"},0,{"$error":"#DIV/0!"},0,{"$error":"#DIV/0!"},{"$error":"#DIV/0!"},0,0,0,0,0,{"$error":"#DIV/0!"},0,{"$error":"#DIV/0!"},0,{"$error":"#DIV/0!"},0,{"$error":"#DIV/0!"},{"$error":"#DIV/0!"}]
[null,{"$f":"Input!C41","v":2020},null,null,0,null,null,null,null,null,null,null,null,0,null,null,null,null,null,null,null,null,null,null,null,null,0,{"$f":"0","v":0},0,{"$f":"0","v":0},0,{"$error":"#DIV/0!"},0,{"$error":"#DIV/0!"},0,{"$error":"#DIV/0!"},0,{"$error":"#DIV/0!"},{"$error":"#DIV/0!"},null,null,0,null,null,null,null,null,null,null,null,0,null,null,null,null,null,null,null,null,null,null,null,null,0,{"$f":"0","v":0},0,{"$f":"0","v":0},0,{"$error":"#DIV/0!"},0,{"$error":"#DIV/0!"},0,{"$error":"#DIV/0!"},0,{"$error":"#DIV/0!"},{"$error":"#DIV/0!"},null,null,0,null,null,null,null,null,null,null,null,0,null,null,null,null,null,null,null,null,null,null,null,null,0,{"$f":"0","v":0},0,{"$f":"0","v":0},0,{"$error":"#DIV/0!"},0,{"$error":"#DIV/0!"},0,{"$error":"#DIV/0!"},0,{"$error":"#DIV/0!"},{"$error":"#DIV/0!"},0,0,0,0,0,{"$error":"#DIV/0!"},0,{"$error":"#DIV/0!"},0,{"$error":"#DIV/0!"},0,{"$error":"#DIV/0!"},{"$error":"#DIV/0!"}]
[null,{"$f":"Input!C42","v":2021},null,null,0,null,null,null,null,null,null,null,null,0,null,null,null,null,null,null,null,null,null,null,null,null,0,{"$f":"0","v":0},0,{"$f":"0","v":0},0,{"$error":"#DIV/0!"},0,{"$error":"#DIV/0!"},0,{"$error":"#DIV/0!"},0,{"$error":"#DIV/0!"},{"$error":"#DIV/0!"},null,null,0,null,null,null,null,null,null,null,null,0,null,null,null,null,null,null,null,null,null,null,null,null,0,{"$f":"0","v":0},0,{"$f":"0","v":0},0,{"$error":"#DIV/0!"},0,{"$error":"#DIV/0!"},0,{"$error":"#DIV/0!"},0,{"$error":"#DIV/0!"},{"$error":"#DIV/0!"},null,null,0,null,null,null,null,null,null,null,null,0,null,null,null,null,null,null,null,null,null,null,null,null,0,{"$f":"0","v":0},0,{"$f":"0","v":0},0,{"$error":"#DIV/0!"},0,{"$error":"#DIV/0!"},0,{"$error":"#DIV/0!"},0,{"$error":"#DIV/0!"},{"$error":"#DIV/0!"},0,0,0,0,0,{"$error":"#DIV/0!"},0,{"$error":"#DIV/0!"},0,{"$error":"#DIV/0!"},0,{"$error":"#DIV/0!"},{"$error":"#DIV/0!"}]
[null,{"$f":"Input!C43","v":2022},null,null,0,null,null,null,null,null,null,null,null,0,null,null,null,null,null,null,null,null,null,null,null,null,0,{"$f":"0","v":0},0,{"$f":"0","v":0},0,{"$error":"#DIV/0!"},0,{"$error":"#DIV/0!"},0,{"$error":"#DIV/0!"},0,{"$error":"#DIV/0!"},{"$error":"#DIV/0!"},null,null,0,null,null,null,null,null,null,null,null,0,null,null,null,null,null,null,null,null,null,null,null,null,0,{"$f":"0","v":0},0,{"$f":"0","v":0},0,{"$error":"#DIV/0!"},0,{"$error":"#DIV/0!"},0,{"$error":"#DIV/0!"},0,{"$error":"#DIV/0!"},{"$error":"#DIV/0!"},null,null,0,null,null,null,null,null,null,null,null,0,null,null,null,null,null,null,null,null,null,null,null,null,0,{"$f":"0","v":0},0,{"$f":"0","v":0},0,{"$error":"#DIV/0!"},0,{"$error":"#DIV/0!"},0,{"$error":"#DIV/0!"},0,{"$error":"#DIV/0!"},{"$error":"#DIV/0!"},0,0,0,0,0,{"$error":"#DIV/0!"},0,{"$error":"#DIV/0!"},0,{"$error":"#DIV/0!"},0,{"$error":"#DIV/0!"},{"$error":"#DIV/0!"}]
[null,{"$f":"Input!C44","v":2023},null,null,0,null,null,null,null,null,null,null,null,0,null,null,null,null,null,null,null,null,null,null,null,null,0,{"$f":"0","v":0},0,{"$f":"0","v":0},0,{"$error":"#DIV/0!"},0,{"$error":"#DIV/0!"},0,{"$error":"#DIV/0!"},0,{"$error":"#DIV/0!"},{"$error":"#DIV/0!"},null,null,0,null,null,null,null,null,null,null,null,0,null,null,null,null,null,null,null,null,null,null,null,null,0,{"$f":"0","v":0},0,{"$f":"0","v":0},0,{"$error":"#DIV/0!"},0,{"$error":"#DIV/0!"},0,{"$error":"#DIV/0!"},0,{"$error":"#DIV/0!"},{"$error":"#DIV/0!"},null,null,0,null,null,null,null,null,null,null,null,0,null,null,null,null,null,null,null,null,null,null,null,null,0,{"$f":"0","v":0},0,{"$f":"0","v":0},0,{"$error":"#DIV/0!"},0,{"$error":"#DIV/0!"},0,{"$error":"#DIV/0!"},0,{"$error":"#DIV/0!"},{"$error":"#DIV/0!"},0,0,0,0,0,{"$error":"#DIV/0!"},0,{"$error":"#DIV/0!"},0,{"$error":"#DIV/0!"},0,{"$error":"#DIV/0!"},{"$error":"#DIV/0!"}]
[null,{"$f":"Input!C45","v":2024},null,null,0,null,null,null,null,null,null,null,null,0,null,null,null,null,null,null,null,null,null,null,null,null,0,{"$f":"0","v":0},0,{"$f":"0","v":0},0,{"$error":"#DIV/0!"},0,{"$error":"#DIV/0!"},0,{"$error":"#DIV/0!"},0,{"$error":"#DIV/0!"},{"$error":"#DIV/0!"},null,null,0,null,null,null,null,null,null,null,null,0,null,null,null,null,null,null,null,null,null,null,null,null,0,{"$f":"0","v":0},0,{"$f":"0","v":0},0,{"$error":"#DIV/0!"},0,{"$error":"#DIV/0!"},0,{"$error":"#DIV/0!"},0,{"$error":"#DIV/0!"},{"$error":"#DIV/0!"},null,null,0,null,null,null,null,null,null,null,null,0,null,null,null,null,null,null,null,null,null,null,null,null,0,{"$f":"0","v":0},0,{"$f":"0","v":0},0,{"$error":"#DIV/0!"},0,{"$error":"#DIV/0!"},0,{"$error":"#DIV/0!"},0,{"$error":"#DIV/0!"},{"$error":"#DIV/0!"},0,0,0,0,0,{"$error":"#DIV/0!"},0,{"$error":"#DIV/0!"},0,{"$error":"#DIV/0!"},0,{"$error":"#DIV/0!"},{"$error":"#DIV/0!"}]
[null,{"$f":"Input!C46","v":2025},null,null,0,null,null,null,null,null,null,null,null,0,null,null,null,null,null,null,null,null,null,null,null,null,0,{"$f":"0","v":0},0,{"$f":"0","v":0},0,{"$error":"#DIV/0!"},0,{"$error":"#DIV/0!"},0,{"$error":"#DIV/0!"},0,{"$error":"#DIV/0!"},{"$error":"#DIV/0!"},null,null,0,null,null,null,null,null,null,null,null,0,null,null,null,null,null,null,null,null,null,null,null,null,0,{"$f":"0","v":0},0,{"$f":"0","v":0},0,{"$error":"#DIV/0!"},0,{"$error":"#DIV/0!"},0,{"$error":"#DIV/0!"},0,{"$error":"#DIV/0!"},{"$error":"#DIV/0!"},null,null,0,null,null,null,null,null,null,null,null,0,null,null,null,null,null,null,null,null,null,null,null,null,0,{"$f":"0","v":0},0,{"$f":"0","v":0},0,{"$error":"#DIV/0!"},0,{"$error":"#DIV/0!"},0,{"$error":"#DIV/0!"},0,{"$error":"#DIV/0!"},{"$error":"#DIV/0!"},0,0,0,0,0,{"$error":"#DIV/0!"},0,{"$error":"#DIV/0!"},0,{"$error":"#DIV/0!"},0,{"$error":"#DIV/0!"},{"$error":"#DIV/0!"}]
[null,{"$f":"Input!C47","v":2026},null,null,0,null,null,null,null,null,null,null,null,0,null,null,null,null,null,null,null,null,null,null,null,null,0,{"$f":"0","v":0},0,{"$f":"0","v":0},0,{"$error":"#DIV/0!"},0,{"$error":"#DIV/0!"},0,{"$error":"#DIV/0!"},0,{"$error":"#DIV/0!"},{"$error":"#DIV/0!"},null,null,0,null,null,null,null,null,null,null,null,0,null,null,null,null,null,null,null,null,null,null,null,null,0,{"$f":"0","v":0},0,{"$f":"0","v":0},0,{"$error":"#DIV/0!"},0,{"$error":"#DIV/0!"},0,{"$error":"#DIV/0!"},0,{"$error":"#DIV/0!"},{"$error":"#DIV/0!"},null,null,0,null,null,null,null,null,null,null,null,0,null,null,null,null,null,null,null,null,null,null,null,null,0,{"$f":"0","v":0},0,{"$f":"0","v":0},0,{"$error":"#DIV/0!"},0,{"$error":"#DIV/0!"},0,{"$error":"#DIV/0!"},0,{"$error":"#DIV/0!"},{"$error":"#DIV/0!"},0,0,0,0,0,{"$error":"#DIV/0!"},0,{"$error":"#DIV/0!"},0,{"$error":"#DIV/0!"},0,{"$error":"#DIV/0!"},{"$error":"#DIV/0!"}]
[null,{"$f":"Input!C48","v":2027},null,null,0,null,null,null,null,null,null,null,null,0,null,null,null,null,null,null,null,null,null,null,null,null,0,{"$f":"0","v":0},0,{"$f":"0","v":0},0,{"$error":"#DIV/0!"},0,{"$error":"#DIV/0!"},0,{"$error":"#DIV/0!"},0,{"$error":"#DIV/0!"},{"$error":"#DIV/0!"},null,null,0,null,null,null,null,null,null,null,null,0,null,null,null,null,null,null,null,null,null,null,null,null,0,{"$f":"0","v":0},0,{"$f":"0","v":0},0,{"$error":"#DIV/0!"},0,{"$error":"#DIV/0!"},0,{"$error":"#DIV/0!"},0,{"$error":"#DIV/0!"},{"$error":"#DIV/0!"},null,null,0,null,null,null,null,null,null,null,null,0,null,null,null,null,null,null,null,null,null,null,null,null,0,{"$f":"0","v":0},0,{"$f":"0","v":0},0,{"$error":"#DIV/0!"},0,{"$error":"#DIV/0!"},0,{"$error":"#DIV/0!"},0,{"$error":"#DIV/0!"},{"$error":"#DIV/0!"},0,0,0,0,0,{"$error":"#DIV/0!"},0,{"$error":"#DIV/0!"},0,{"$error":"#DIV/0!"},0,{"$error":"#DIV/0!"},{"$error":"#DIV/0!"}]
[null,{"$f":"Input!C49","v":2028},null,null,0,null,null,null,null,null,null,null,null,0,null,null,null,null,null,null,null,null,null,null,null,null,0,{"$f":"0","v":0},0,{"$f":"0","v":0},0,{"$error":"#DIV/0!"},0,{"$error":"#DIV/0!"},0,{"$error":"#DIV/0!"},0,{"$error":"#DIV/0!"},{"$error":"#DIV/0!"},null,null,0,null,null,null,null,null,null,null,null,0,null,null,null,null,null,null,null,null,null,null,null,null,0,{"$f":"0","v":0},0,{"$f":"0","v":0},0,{"$error":"#DIV/0!"},0,{"$error":"#DIV/0!"},0,{"$error":"#DIV/0!"},0,{"$error":"#DIV/0!"},{"$error":"#DIV/0!"},null,null,0,null,null,null,null,null,null,null,null,0,null,null,null,null,null,null,null,null,null,null,null,null,0,{"$f":"0","v":0},0,{"$f":"0","v":0},0,{"$error":"#DIV/0!"},0,{"$error":"#DIV/0!"},0,{"$error":"#DIV/0!"},0,{"$error":"#DIV/0!"},{"$error":"#DIV/0!"},0,0,0,0,0,{"$error":"#DIV/0!"},0,{"$error":"#DIV/0!"},0,{"$error":"#DIV/0!"},0,{"$error":"#DIV/0!"},{"$error":"#DIV/0!"}]
[null,{"$f":"Input!C50","v":2029},null,null,0,null,null,null,null,null,null,null,null,0,null,null,null,null,null,null,null,null,null,null,null,null,0,{"$f":"0","v":0},0,{"$f":"0","v":0},0,{"$error":"#DIV/0!"},0,{"$error":"#DIV/0!"},0,{"$error":"#DIV/0!"},0,{"$error":"#DIV/0!"},{"$error":"#DIV/0!"},null,null,0,null,null,null,null,null,null,null,null,0,null,null,null,null,null,null,null,null,null,null,null,null,0,{"$f":"0","v":0},0,{"$f":"0","v":0},0,{"$error":"#DIV/0!"},0,{"$error":"#DIV/0!"},0,{"$error":"#DIV/0!"},0,{"$error":"#DIV/0!"},{"$error":"#DIV/0!"},null,null,0,null,null,null,null,null,null,null,null,0,null,null,null,null,null,null,null,null,null,null,null,null,0,{"$f":"0","v":0},0,{"$f":"0","v":0},0,{"$error":"#DIV/0!"},0,{"$error":"#DIV/0!"},0,{"$error":"#DIV/0!"},0,{"$error":"#DIV/0!"},{"$error":"#DIV/0!"},0,0,0,0,0,{"$error":"#DIV/0!"},0,{"$error":"#DIV/0!"},0,{"$error":"#DIV/0!"},0,{"$error":"#DIV/0!"},{"$error":"#DIV/0!"}]
[null,{"$f":"Input!C51","v":2030},null,null,0,null,null,null,null,null,null,null,null,0,null,null,null,null,null,null,null,null,null,null,null,null,0,{"$f":"0","v":0},0,{"$f":"0","v":0},0,{"$error":"#DIV/0!"},0,{"$error":"#DIV/0!"},0,{"$error":"#DIV/0!"},0,{"$error":"#DIV/0!"},{"$error":"#DIV/0!"},null,null,0,null,null,null,null,null,null,null,null,0,null,null,null,null,null,null,null,null,null,null,null,null,0,{"$f":"0","v":0},0,{"$f":"0","v":0},0,{"$error":"#DIV/0!"},0,{"$error":"#DIV/0!"},0,{"$error":"#DIV/0!"},0,{"$error":"#DIV/0!"},{"$error":"#DIV/0!"},null,null,0,null,null,null,null,null,null,null,null,0,null,null,null,null,null,null,null,null,null,null,null,null,0,{"$f":"0","v":0},0,{"$f":"0","v":0},0,{"$error":"#DIV/0!"},0,{"$error":"#DIV/0!"},0,{"$error":"#DIV/0!"},0,{"$error":"#DIV/0!"},{"$error":"#DIV/0!"},0,0,0,0,0,{"$error":"#DIV/0!"},0,{"$error":"#DIV/0!"},0,{"$error":"#DIV/0!"},0,{"$error":"#DIV/0!"},{"$error":"#DIV/0!"}]
[null,{"$f":"Input!C52","v":2031},null,null,0,null,null,null,null,null,null,null,null,0,null,null,null,null,null,null,null,null,null,null,null,null,0,{"$f":"0","v":0},0,{"$f":"0","v":0},0,{"$error":"#DIV/0!"},0,{"$error":"#DIV/0!"},0,{"$error":"#DIV/0!"},0,{"$error":"#DIV/0!"},{"$error":"#DIV/0!"},null,null,0,null,null,null,null,null,null,null,null,0,null,null,null,null,null,null,null,null,null,null,null,null,0,{"$f":"0","v":0},0,{"$f":"0","v":0},0,{"$error":"#DIV/0!"},0,{"$error":"#DIV/0!"},0,{"$error":"#DIV/0!"},0,{"$error":"#DIV/0!"},{"$error":"#DIV/0!"},null,null,0,null,null,null,null,null,null,null,null,0,null,null,null,null,null,null,null,null,null,null,null,null,0,{"$f":"0","v":0},0,{"$f":"0","v":0},0,{"$error":"#DIV/0!"},0,{"$error":"#DIV/0!"},0,{"$error":"#DIV/0!"},0,{"$error":"#DIV/0!"},{"$error":"#DIV/0!"},0,0,0,0,0,{"$error":"#DIV/0!"},0,{"$error":"#DIV/0!"},0,{"$error":"#DIV/0!"},0,{"$error":"#DIV/0!"},{"$error":"#DIV/0!"}]
[null,{"$f":"Input!C53","v":2032},null,null,0,null,null,null,null,null,null,null,null,0,null,null,null,null,null,null,null,null,null,null,null,null,0,{"$f":"0","v":0},0,{"$f":"0","v":0},0,{"$error":"#DIV/0!"},0,{"$error":"#DIV/0!"},0,{"$error":"#DIV/0!"},0,{"$error":"#DIV/0!"},{"$error":"#DIV/0!"},null,null,0,null,null,null,null,null,null,null,null,0,null,null,null,null,null,null,null,null,null,null,null,null,0,{"$f":"0","v":0},0,{"$f":"0","v":0},0,{"$error":"#DIV/0!"},0,{"$error":"#DIV/0!"},0,{"$error":"#DIV/0!"},0,{"$error":"#DIV/0!"},{"$error":"#DIV/0!"},null,null,0,null,null,null,null,null,null,null,null,0,null,null,null,null,null,null,null,null,null,null,null,null,0,{"$f":"0","v":0},0,{"$f":"0","v":0},0,{"$error":"#DIV/0!"},0,{"$error":"#DIV/0!"},0,{"$error":"#DIV/0!"},0,{"$error":"#DIV/0!"},{"$error":"#DIV/0!"},0,0,0,0,0,{"$error":"#DIV/0!"},0,{"$error":"#DIV/0!"},0,{"$error":"#DIV/0!"},0,{"$error":"#DIV/0!"},{"$error":"#DIV/0!"}]
[null,{"$f":"Input!C54","v":2033},null,null,0,null,null,null,null,null,null,null,null,0,null,null,null,null,null,null,null,null,null,null,null,null,0,{"$f":"0","v":0},0,{"$f":"0","v":0},0,{"$error":"#DIV/0!"},0,{"$error":"#DIV/0!"},0,{"$error":"#DIV/0!"},0,{"$error":"#DIV/0!"},{"$error":"#DIV/0!"},null,null,0,null,null,null,null,null,null,null,null,0,null,null,null,null,null,null,null,null,null,null,null,null,0,{"$f":"0","v":0},0,{"$f":"0","v":0},0,{"$error":"#DIV/0!"},0,{"$error":"#DIV/0!"},0,{"$error":"#DIV/0!"},0,{"$error":"#DIV/0!"},{"$error":"#DIV/0!"},null,null,0,null,null,null,null,null,null,null,null,0,null,null,null,null,null,null,null,null,null,null,null,null,0,{"$f":"0","v":0},0,{"$f":"0","v":0},0,{"$error":"#DIV/0!"},0,{"$error":"#DIV/0!"},0,{"$error":"#DIV/0!"},0,{"$error":"#DIV/0!"},{"$error":"#DIV/0!"},0,0,0,0,0,{"$error":"#DIV/0!"},0,{"$error":"#DIV/0!"},0,{"$error":"#DIV/0!"},0,{"$error":"#DIV/0!"},{"$error":"#DIV/0!"}]
[null,{"$f":"Input!C55","v":2034},null,null,0,null,null,null,null,null,null,null,null,0,null,null,null,null,null,null,null,null,null,null,null,null,0,{"$f":"0","v":0},0,{"$f":"0","v":0},0,{"$error":"#DIV/0!"},0,{"$error":"#DIV/0!"},0,{"$error":"#DIV/0!"},0,{"$error":"#DIV/0!"},{"$error":"#DIV/0!"},null,null,0,null,null,null,null,null,null,null,null,0,null,null,null,null,null,null,null,null,null,null,null,null,0,{"$f":"0","v":0},0,{"$f":"0","v":0},0,{"$error":"#DIV/0!"},0,{"$error":"#DIV/0!"},0,{"$error":"#DIV/0!"},0,{"$error":"#DIV/0!"},{"$error":"#DIV/0!"},null,null,0,null,null,null,null,null,null,null,null,0,null,null,null,null,null,null,null,null,null,null,null,null,0,{"$f":"0","v":0},0,{"$f":"0","v":0},0,{"$error":"#DIV/0!"},0,{"$error":"#DIV/0!"},0,{"$error":"#DIV/0!"},0,{"$error":"#DIV/0!"},{"$error":"#DIV/0!"},0,0,0,0,0,{"$error":"#DIV/0!"},0,{"$error":"#DIV/0!"},0,{"$error":"#DIV/0!"},0,{"$error":"#DIV/0!"},{"$error":"#DIV/0!"}]
[null,{"$f":"Input!C56","v":2035},null,null,0,null,null,null,null,null,null,null,null,0,null,null,null,null,null,null,null,null,null,null,null,null,0,{"$f":"0","v":0},0,{"$f":"0","v":0},0,{"$error":"#DIV/0!"},0,{"$error":"#DIV/0!"},0,{"$error":"#DIV/0!"},0,{"$error":"#DIV/0!"},{"$error":"#DIV/0!"},null,null,0,null,null,null,null,null,null,null,null,0,null,null,null,null,null,null,null,null,null,null,null,null,0,{"$f":"0","v":0},0,{"$f":"0","v":0},0,{"$error":"#DIV/0!"},0,{"$error":"#DIV/0!"},0,{"$error":"#DIV/0!"},0,{"$error":"#DIV/0!"},{"$error":"#DIV/0!"},null,null,0,null,null,null,null,null,null,null,null,0,null,null,null,null,null,null,null,null,null,null,null,null,0,{"$f":"0","v":0},0,{"$f":"0","v":0},0,{"$error":"#DIV/0!"},0,{"$error":"#DIV/0!"},0,{"$error":"#DIV/0!"},0,{"$error":"#DIV/0!"},{"$error":"#DIV/0!"},0,0,0,0,0,{"$error":"#DIV/0!"},0,{"$error":"#DIV/0!"},0,{"$error":"#DIV/0!"},0,{"$error":"#DIV/0!"},{"$error":"#DIV/0!"}]
[null,{"$f":"Input!C57","v":2036},null,null,0,null,null,null,null,null,null,null,null,0,null,null,null,null,null,null,null,null,null,null,null,null,0,{"$f":"0","v":0},0,{"$f":"0","v":0},0,{"$error":"#DIV/0!"},0,{"$error":"#DIV/0!"},0,{"$error":"#DIV/0!"},0,{"$error":"#DIV/0!"},{"$error":"#DIV/0!"},null,null,0,null,null,null,null,null,null,null,null,0,null,null,null,null,null,null,null,null,null,null,null,null,0,{"$f":"0","v":0},0,{"$f":"0","v":0},0,{"$error":"#DIV/0!"},0,{"$error":"#DIV/0!"},0,{"$error":"#DIV/0!"},0,{"$error":"#DIV/0!"},{"$error":"#DIV/0!"},null,null,0,null,null,null,null,null,null,null,null,0,null,null,null,null,null,null,null,null,null,null,null,null,0,{"$f":"0","v":0},0,{"$f":"0","v":0},0,{"$error":"#DIV/0!"},0,{"$error":"#DIV/0!"},0,{"$error":"#DIV/0!"},0,{"$error":"#DIV/0!"},{"$error":"#DIV/0!"},0,0,0,0,0,{"$error":"#DIV/0!"},0,{"$error":"#DIV/0!"},0,{"$error":"#DIV/0!"},0,{"$error":"#DIV/0!"},{"$error":"#DIV/0!"}]
[null,{"$f":"Input!C58","v":2037},null,null,0,null,null,null,null,null,null,null,null,0,null,null,null,null,null,null,null,null,null,null,null,null,0,{"$f":"0","v":0},0,{"$f":"0","v":0},0,{"$error":"#DIV/0!"},0,{"$error":"#DIV/0!"},0,{"$error":"#DIV/0!"},0,{"$error":"#DIV/0!"},{"$error":"#DIV/0!"},null,null,0,null,null,null,null,null,null,null,null,0,null,null,null,null,null,null,null,null,null,null,null,null,0,{"$f":"0","v":0},0,{"$f":"0","v":0},0,{"$error":"#DIV/0!"},0,{"$error":"#DIV/0!"},0,{"$error":"#DIV/0!"},0,{"$error":"#DIV/0!"},{"$error":"#DIV/0!"},null,null,0,null,null,null,null,null,null,null,null,0,null,null,null,null,null,null,null,null,null,null,null,null,0,{"$f":"0","v":0},0,{"$f":"0","v":0},0,{"$error":"#DIV/0!"},0,{"$error":"#DIV/0!"},0,{"$error":"#DIV/0!"},0,{"$error":"#DIV/0!"},{"$error":"#DIV/0!"},0,0,0,0,0,{"$error":"#DIV/0!"},0,{"$error":"#DIV/0!"},0,{"$error":"#DIV/0!"},0,{"$error":"#DIV/0!"},{"$error":"#DIV/0!"}]
[null,{"$f":"Input!C59","v":2038},null,null,0,null,null,null,null,null,null,null,null,0,null,null,null,null,null,null,null,null,null,null,null,null,0,{"$f":"0","v":0},0,{"$f":"0","v":0},0,{"$error":"#DIV/0!"},0,{"$error":"#DIV/0!"},0,{"$error":"#DIV/0!"},0,{"$error":"#DIV/0!"},{"$error":"#DIV/0!"},null,null,0,null,null,null,null,null,null,null,null,0,null,null,null,null,null,null,null,null,null,null,null,null,0,{"$f":"0","v":0},0,{"$f":"0","v":0},0,{"$error":"#DIV/0!"},0,{"$error":"#DIV/0!"},0,{"$error":"#DIV/0!"},0,{"$error":"#DIV/0!"},{"$error":"#DIV/0!"},null,null,0,null,null,null,null,null,null,null,null,0,null,null,null,null,null,null,null,null,null,null,null,null,0,{"$f":"0","v":0},0,{"$f":"0","v":0},0,{"$error":"#DIV/0!"},0,{"$error":"#DIV/0!"},0,{"$error":"#DIV/0!"},0,{"$error":"#DIV/0!"},{"$error":"#DIV/0!"},0,0,0,0,0,{"$error":"#DIV/0!"},0,{"$error":"#DIV/0!"},0,{"$error":"#DIV/0!"},0,{"$error":"#DIV/0!"},{"$error":"#DIV/0!"}]
[null,{"$f":"Input!C60","v":2039},null,null,0,null,null,null,null,null,null,null,null,0,null,null,null,null,null,null,null,null,null,null,null,null,0,{"$f":"0","v":0},0,{"$f":"0","v":0},0,{"$error":"#DIV/0!"},0,{"$error":"#DIV/0!"},0,{"$error":"#DIV/0!"},0,{"$error":"#DIV/0!"},{"$error":"#DIV/0!"},null,null,0,null,null,null,null,null,null,null,null,0,null,null,null,null,null,null,null,null,null,null,null,null,0,{"$f":"0","v":0},0,{"$f":"0","v":0},0,{"$error":"#DIV/0!"},0,{"$error":"#DIV/0!"},0,{"$error":"#DIV/0!"},0,{"$error":"#DIV/0!"},{"$error":"#DIV/0!"},null,null,0,null,null,null,null,null,null,null,null,0,null,null,null,null,null,null,null,null,null,null,null,null,0,{"$f":"0","v":0},0,{"$f":"0","v":0},0,{"$error":"#DIV/0!"},0,{"$error":"#DIV/0!"},0,{"$error":"#DIV/0!"},0,{"$error":"#DIV/0!"},{"$error":"#DIV/0!"},0,0,0,0,0,{"$error":"#DIV/0!"},0,{"$error":"#DIV/0!"},0,{"$error":"#DIV/0!"},0,{"$error":"#DIV/0!"},{"$error":"#DIV/0!"}]
[null,{"$f":"Input!C61","v":2040},null,null,0,null,null,null,null,null,null,null,null,0,null,null,null,null,null,null,null,null,null,null,null,null,0,{"$f":"0","v":0},0,{"$f":"0","v":0},0,{"$error":"#DIV/0!"},0,{"$error":"#DIV/0!"},0,{"$error":"#DIV/0!"},0,{"$error":"#DIV/0!"},{"$error":"#DIV/0!"},null,null,0,null,null,null,null,null,null,null,null,0,null,null,null,null,null,null,null,null,null,null,null,null,0,{"$f":"0","v":0},0,{"$f":"0","v":0},0,{"$error":"#DIV/0!"},0,{"$error":"#DIV/0!"},0,{"$error":"#DIV/0!"},0,{"$error":"#DIV/0!"},{"$error":"#DIV/0!"},null,null,0,null,null,null,null,null,null,null,null,0,null,null,null,null,null,null,null,null,null,null,null,null,0,{"$f":"0","v":0},0,{"$f":"0","v":0},0,{"$error":"#DIV/0!"},0,{"$error":"#DIV/0!"},0,{"$error":"#DIV/0!"},0,{"$error":"#DIV/0!"},{"$error":"#DIV/0!"},0,0,0,0,0,{"$error":"#DIV/0!"},0,{"$error":"#DIV/0!"},0,{"$error":"#DIV/0!"},0,{"$error":"#DIV/0!"},{"$error":"#DIV/0!"}]
[null,{"$f":"Input!C62","v":2041},null,null,0,null,null,null,null,null,null,null,null,0,null,null,null,null,null,null,null,null,null,null,null,null,0,{"$f":"0","v":0},0,{"$f":"0","v":0},0,{"$error":"#DIV/0!"},0,{"$error":"#DIV/0!"},0,{"$error":"#DIV/0!"},0,{"$error":"#DIV/0!"},{"$error":"#DIV/0!"},null,null,0,null,null,null,null,null,null,null,null,0,null,null,null,null,null,null,null,null,null,null,null,null,0,{"$f":"0","v":0},0,{"$f":"0","v":0},0,{"$error":"#DIV/0!"},0,{"$error":"#DIV/0!"},0,{"$error":"#DIV/0!"},0,{"$error":"#DIV/0!"},{"$error":"#DIV/0!"},null,null,0,null,null,null,null,null,null,null,null,0,null,null,null,null,null,null,null,null,null,null,null,null,0,{"$f":"0","v":0},0,{"$f":"0","v":0},0,{"$error":"#DIV/0!"},0,{"$error":"#DIV/0!"},0,{"$error":"#DIV/0!"},0,{"$error":"#DIV/0!"},{"$error":"#DIV/0!"},0,0,0,0,0,{"$error":"#DIV/0!"},0,{"$error":"#DIV/0!"},0,{"$error":"#DIV/0!"},0,{"$error":"#DIV/0!"},{"$error":"#DIV/0!"}]
[null,{"$f":"Input!C63","v":2042},null,null,0,null,null,null,null,null,null,null,null,0,null,null,null,null,null,null,null,null,null,null,null,null,0,{"$f":"0","v":0},0,{"$f":"0","v":0},0,{"$error":"#DIV/0!"},0,{"$error":"#DIV/0!"},0,{"$error":"#DIV/0!"},0,{"$error":"#DIV/0!"},{"$error":"#DIV/0!"},null,null,0,null,null,null,null,null,null,null,null,0,null,null,null,null,null,null,null,null,null,null,null,null,0,{"$f":"0","v":0},0,{"$f":"0","v":0},0,{"$error":"#DIV/0!"},0,{"$error":"#DIV/0!"},0,{"$error":"#DIV/0!"},0,{"$error":"#DIV/0!"},{"$error":"#DIV/0!"},null,null,0,null,null,null,null,null,null,null,null,0,null,null,null,null,null,null,null,null,null,null,null,null,0,{"$f":"0","v":0},0,{"$f":"0","v":0},0,{"$error":"#DIV/0!"},0,{"$error":"#DIV/0!"},0,{"$error":"#DIV/0!"},0,{"$error":"#DIV/0!"},{"$error":"#DIV/0!"},0,0,0,0,0,{"$error":"#DIV/0!"},0,{"$error":"#DIV/0!"},0,{"$error":"#DIV/0!"},0,{"$error":"#DIV/0!"},{"$error":"#DIV/0!"}]
[null,{"$f":"Input!C64","v":2043},null,null,0,null,null,null,null,null,null,null,null,0,null,null,null,null,null,null,null,null,null,null,null,null,0,{"$f":"0","v":0},0,{"$f":"0","v":0},0,{"$error":"#DIV/0!"},0,{"$error":"#DIV/0!"},0,{"$error":"#DIV/0!"},0,{"$error":"#DIV/0!"},{"$error":"#DIV/0!"},null,null,0,null,null,null,null,null,null,null,null,0,null,null,null,null,null,null,null,null,null,null,null,null,0,{"$f":"0","v":0},0,{"$f":"0","v":0},0,{"$error":"#DIV/0!"},0,{"$error":"#DIV/0!"},0,{"$error":"#DIV/0!"},0,{"$error":"#DIV/0!"},{"$error":"#DIV/0!"},null,null,0,null,null,null,null,null,null,null,null,0,null,null,null,null,null,null,null,null,null,null,null,null,0,{"$f":"0","v":0},0,{"$f":"0","v":0},0,{"$error":"#DIV/0!"},0,{"$error":"#DIV/0!"},0,{"$error":"#DIV/0!"},0,{"$error":"#DIV/0!"},{"$error":"#DIV/0!"},0,0,0,0,0,{"$error":"#DIV/0!"},0,{"$error":"#DIV/0!"},0,{"$error":"#DIV/0!"},0,{"$error":"#DIV/0!"},{"$error":"#DIV/0!"}]
[null,{"$f":"Input!C65","v":2044},null,null,0,null,null,null,null,null,null,null,null,0,null,null,null,null,null,null,null,null,null,null,null,null,0,{"$f":"0","v":0},0,{"$f":"0","v":0},0,{"$error":"#DIV/0!"},0,{"$error":"#DIV/0!"},0,{"$error":"#DIV/0!"},0,{"$error":"#DIV/0!"},{"$error":"#DIV/0!"},null,null,0,null,null,null,null,null,null,null,null,0,null,null,null,null,null,null,null,null,null,null,null,null,0,{"$f":"0","v":0},0,{"$f":"0","v":0},0,{"$error":"#DIV/0!"},0,{"$error":"#DIV/0!"},0,{"$error":"#DIV/0!"},0,{"$error":"#DIV/0!"},{"$error":"#DIV/0!"},null,null,0,null,null,null,null,null,null,null,null,0,null,null,null,null,null,null,null,null,null,null,null,null,0,{"$f":"0","v":0},0,{"$f":"0","v":0},0,{"$error":"#DIV/0!"},0,{"$error":"#DIV/0!"},0,{"$error":"#DIV/0!"},0,{"$error":"#DIV/0!"},{"$error":"#DIV/0!"},0,0,0,0,0,{"$error":"#DIV/0!"},0,{"$error":"#DIV/0!"},0,{"$error":"#DIV/0!"},0,{"$error":"#DIV/0!"},{"$error":"#DIV/0!"}]
[null,{"$f":"Input!C66","v":2045},null,null,0,null,null,null,null,null,null,null,null,0,null,null,null,null,null,null,null,null,null,null,null,null,0,{"$f":"0","v":0},0,{"$f":"0","v":0},0,{"$error":"#DIV/0!"},0,{"$error":"#DIV/0!"},0,{"$error":"#DIV/0!"},0,{"$error":"#DIV/0!"},{"$error":"#DIV/0!"},null,null,0,null,null,null,null,null,null,null,null,0,null,null,null,null,null,null,null,null,null,null,null,null,0,{"$f":"0","v":0},0,{"$f":"0","v":0},0,{"$error":"#DIV/0!"},0,{"$error":"#DIV/0!"},0,{"$error":"#DIV/0!"},0,{"$error":"#DIV/0!"},{"$error":"#DIV/0!"},null,null,0,null,null,null,null,null,null,null,null,0,null,null,null,null,null,null,null,null,null,null,null,null,0,{"$f":"0","v":0},0,{"$f":"0","v":0},0,{"$error":"#DIV/0!"},0,{"$error":"#DIV/0!"},0,{"$error":"#DIV/0!"},0,{"$error":"#DIV/0!"},{"$error":"#DIV/0!"},0,0,0,0,0,{"$error":"#DIV/0!"},0,{"$error":"#DIV/0!"},0,{"$error":"#DIV/0!"},0,{"$error":"#DIV/0!"},{"$error":"#DIV/0!"}]
[null,{"$f":"Input!C67","v":2046},null,null,0,null,null,null,null,null,null,null,null,0,null,null,null,null,null,null,null,null,null,null,null,null,0,{"$f":"0","v":0},0,{"$f":"0","v":0},0,{"$error":"#DIV/0!"},0,{"$error":"#DIV/0!"},0,{"$error":"#DIV/0!"},0,{"$error":"#DIV/0!"},{"$error":"#DIV/0!"},null,null,0,null,null,null,null,null,null,null,null,0,null,null,null,null,null,null,null,null,null,null,null,null,0,{"$f":"0","v":0},0,{"$f":"0","v":0},0,{"$error":"#DIV/0!"},0,{"$error":"#DIV/0!"},0,{"$error":"#DIV/0!"},0,{"$error":"#DIV/0!"},{"$error":"#DIV/0!"},null,null,0,null,null,null,null,null,null,null,null,0,null,null,null,null,null,null,null,null,null,null,null,null,0,{"$f":"0","v":0},0,{"$f":"0","v":0},0,{"$error":"#DIV/0!"},0,{"$error":"#DIV/0!"},0,{"$error":"#DIV/0!"},0,{"$error":"#DIV/0!"},{"$error":"#DIV/0!"},0,0,0,0,0,{"$error":"#DIV/0!"},0,{"$error":"#DIV/0!"},0,{"$error":"#DIV/0!"},0,{"$error":"#DIV/0!"},{"$error":"#DIV/0!"}]
[null,{"$f":"Input!C68","v":2047},null,null,0,null,null,null,null,null,null,null,null,0,null,null,null,null,null,null,null,null,null,null,null,null,0,{"$f":"0","v":0},0,{"$f":"0","v":0},0,{"$error":"#DIV/0!"},0,{"$error":"#DIV/0!"},0,{"$error":"#DIV/0!"},0,{"$error":"#DIV/0!"},{"$error":"#DIV/0!"},null,null,0,null,null,null,null,null,null,null,null,0,null,null,null,null,null,null,null,null,null,null,null,null,0,{"$f":"0","v":0},0,{"$f":"0","v":0},0,{"$error":"#DIV/0!"},0,{"$error":"#DIV/0!"},0,{"$error":"#DIV/0!"},0,{"$error":"#DIV/0!"},{"$error":"#DIV/0!"},null,null,0,null,null,null,null,null,null,null,null,0,null,null,null,null,null,null,null,null,null,null,null,null,0,{"$f":"0","v":0},0,{"$f":"0","v":0},0,{"$error":"#DIV/0!"},0,{"$error":"#DIV/0!"},0,{"$error":"#DIV/0!"},0,{"$error":"#DIV/0!"},{"$error":"#DIV/0!"},0,0,0,0,0,{"$error":"#DIV/0!"},0,{"$error":"#DIV/0!"},0,{"$error":"#DIV/0!"},0,{"$error":"#DIV/0!"},{"$error":"#DIV/0!"}]
[null,{"$f":"Input!C69","v":2048},null,null,0,null,null,null,null,null,null,null,null,0,null,null,null,null,null,null,null,null,null,null,null,null,0,{"$f":"0","v":0},0,{"$f":"0","v":0},0,{"$error":"#DIV/0!"},0,{"$error":"#DIV/0!"},0,{"$error":"#DIV/0!"},0,{"$error":"#DIV/0!"},{"$error":"#DIV/0!"},null,null,0,null,null,null,null,null,null,null,null,0,null,null,null,null,null,null,null,null,null,null,null,null,0,{"$f":"0","v":0},0,{"$f":"0","v":0},0,{"$error":"#DIV/0!"},0,{"$error":"#DIV/0!"},0,{"$error":"#DIV/0!"},0,{"$error":"#DIV/0!"},{"$error":"#DIV/0!"},null,null,0,null,null,null,null,null,null,null,null,0,null,null,null,null,null,null,null,null,null,null,null,null,0,{"$f":"0","v":0},0,{"$f":"0","v":0},0,{"$error":"#DIV/0!"},0,{"$error":"#DIV/0!"},0,{"$error":"#DIV/0!"},0,{"$error":"#DIV/0!"},{"$error":"#DIV/0!"},0,0,0,0,0,{"$error":"#DIV/0!"},0,{"$error":"#DIV/0!"},0,{"$error":"#DIV/0!"},0,{"$error":"#DIV/0!"},{"$error":"#DIV/0!"}]
[null,{"$f":"Input!C70","v":2049},null,null,0,null,null,null,null,null,null,null,null,0,null,null,null,null,null,null,null,null,null,null,null,null,0,{"$f":"0","v":0},0,{"$f":"0","v":0},0,{"$error":"#DIV/0!"},0,{"$error":"#DIV/0!"},0,{"$error":"#DIV/0!"},0,{"$error":"#DIV/0!"},{"$error":"#DIV/0!"},null,null,0,null,null,null,null,null,null,null,null,0,null,null,null,null,null,null,null,null,null,null,null,null,0,{"$f":"0","v":0},0,{"$f":"0","v":0},0,{"$error":"#DIV/0!"},0,{"$error":"#DIV/0!"},0,{"$error":"#DIV/0!"},0,{"$error":"#DIV/0!"},{"$error":"#DIV/0!"},null,null,0,null,null,null,null,null,null,null,null,0,null,null,null,null,null,null,null,null,null,null,null,null,0,{"$f":"0","v":0},0,{"$f":"0","v":0},0,{"$error":"#DIV/0!"},0,{"$error":"#DIV/0!"},0,{"$error":"#DIV/0!"},0,{"$error":"#DIV/0!"},{"$error":"#DIV/0!"},0,0,0,0,0,{"$error":"#DIV/0!"},0,{"$error":"#DIV/0!"},0,{"$error":"#DIV/0!"},0,{"$error":"#DIV/0!"},{"$error":"#DIV/0!"}]
[null,{"$f":"Input!C71","v":2050},null,null,0,null,null,null,null,null,null,null,null,0,null,null,null,null,null,null,null,null,null,null,null,null,0,{"$f":"0","v":0},0,{"$f":"0","v":0},0,{"$error":"#DIV/0!"},0,{"$error":"#DIV/0!"},0,{"$error":"#DIV/0!"},0,{"$error":"#DIV/0!"},{"$error":"#DIV/0!"},null,null,0,null,null,null,null,null,null,null,null,0,null,null,null,null,null,null,null,null,null,null,null,null,0,{"$f":"0","v":0},0,{"$f":"0","v":0},0,{"$error":"#DIV/0!"},0,{"$error":"#DIV/0!"},0,{"$error":"#DIV/0!"},0,{"$error":"#DIV/0!"},{"$error":"#DIV/0!"},null,null,0,null,null,null,null,null,null,null,null,0,null,null,null,null,null,null,null,null,null,null,null,null,0,{"$f":"0","v":0},0,{"$f":"0","v":0},0,{"$error":"#DIV/0!"},0,{"$error":"#DIV/0!"},0,{"$error":"#DIV/0!"},0,{"$error":"#DIV/0!"},{"$error":"#DIV/0!"},0,0,0,0,0,{"$error":"#DIV/0!"},0,{"$error":"#DIV/0!"},0,{"$error":"#DIV/0!"},0,{"$error":"#DIV/0!"},{"$error":"#DIV/0!"}]
[null,null,null,null,"Total Commuter Trips / Week = Number of Commuters * One-Way Trips / Week",null,null,null,null,null,null,null,null,"Total % Mode Splits = Sum of all % Trips Made by Each Mode",null,null,null,null,null,null,null,null,null,null,null,null,"Total Distance = Total Trips / Week * Weeks / Year * % Trips by Bike * Miles / Trip","Assuming bikers do not use any fuel.","Total Distance = Total Trips / Week * Weeks / Year * % Trips by Foot * Miles / Trip","Assuming pedestrians do not use any fuel.","Total Distance = ((Total Trips / Week * Weeks / Year * % Trips Driven Alone * Miles / Trip) + (Total Trips / Week * Weeks / Year * % Carpool * Miles / Trip % Carpool)/2)","Fuel Consumption = Total Distance / Fuel Efficiency","Total Distance = Total Trips / Week * Weeks / Year * % Trips by Bus * Miles / Trip","Fuel Consumption = Total Distance / Fuel Efficiency","Total Distance = Total Trips / Week * Weeks / Year * % Trips by Light Rail * Miles / Trip","Fuel Consumption = Total Distance / Fuel Efficiency","Total Distance = Total Trips / Week * Weeks / Year * % Trips by Commuter Rail * Miles / Trip","Fuel Consumption = Total Distance / Fuel Efficiency","Fuel Consumption = Total Distance / Fuel Efficiency",null,null,"Total Commuter Trips / Week = Number of Commuters * One-Way Trips / Week",null,null,null,null,null,null,null,null,null,null,null,null,null,null,null,null,null,null,null,null,null,"Total Distance = Total Trips / Week * Weeks / Year * % Trips by Bike * Miles / Trip","Assuming bikers do not use any fuel.","Total Distance = Total Trips / Week * Weeks / Year * % Trips by Foot * Miles / Trip","Assuming pedestrians do not use any fuel.","Total Distance = ((Total Trips / Week * Weeks / Year * % Trips Driven Alone * Miles / Trip) + (Total Trips / Week * Weeks / Year * % Carpool * Miles / Trip % Carpool)/2)","Fuel Consumption = Total Distance / Fuel Efficiency","Total Distance = Total Trips / Week * Weeks / Year * % Trips by Bus * Miles / Trip","Fuel Consumption = Total Distance / Fuel Efficiency","Total Distance = Total Trips / Week * Weeks / Year * % Trips by Light Rail * Miles / Trip","Fuel Consumption = Total Distance / Fuel Efficiency","Total Distance = Total Trips / Week * Weeks / Year * % Trips by Commuter Rail * Miles / Trip","Fuel Consumption = Total Distance / Fuel Efficiency","Fuel Consumption = Total Distance / Fuel Efficiency",null,null,"Total Commuter Trips / Week = Number of Commuters * One-Way Trips / Week",null,null,null,null,null,null,null,null,null,null,null,null,null,null,null,null,null,null,null,null,null,"Total Distance = Total Trips / Week * Weeks / Year * % Trips by Bike * Miles / Trip","Assuming bikers do not use any fuel.","Total Distance = Total Trips / Week * Weeks / Year * % Trips by Foot * Miles / Trip","Assuming pedestrians do not use any fuel.","Total Distance = ((Total Trips / Week * Weeks / Year * % Trips Driven Alone * Miles / Trip) + (Total Trips / Week * Weeks / Year * % Carpool * Miles / Trip % Carpool)/2)","Fuel Consumption = Total Distance / Fuel Efficiency","Total Distance = Total Trips / Week * Weeks / Year * % Trips by Bus * Miles / Trip","Fuel Consumption = Total Distance / Fuel Efficiency","Total Distance = Total Trips / Week * Weeks / Year * % Trips by Light Rail * Miles / Trip","Fuel Consumption = Total Distance / Fuel Efficiency","Total Distance = Total Trips / Week * Weeks / Year * % Trips by Commuter Rail * Miles / Trip","Fuel Consumption = Total Distance / Fuel Efficiency","Fuel Consumption = Total Distance / Fuel Efficiency"]
[]
[null,"©2001-2016 University of New Hampshire. All rights reserved."]
[null,"UNH, Campus Carbon Calculator, and the UNH logo are trademarks of the University of New Hampshire."]